{"text_format":"3","workbook":"xlsx","n_sheets":12,"sheets":["1월","2월","3월","4월","5월","6월","7월","8월","9월","10월","11월","12월"],"not_rendered":{"defined_names":40},"read":"whole","date_system":"1900"}

{"sheet":"1월","index":0,"n_rows":20,"n_cols":9,"rows_kept":20,"merged":[[16,2,17,2],[16,3,17,3],[17,4,19,8]]}
[null,"1월","일",{"$f":"UPPER(TEXT(D3,\"aaa\"))","v":"월"},"화","수","목","금","토"]
[null,{"$f":"YEAR(TODAY())","v":2018}]
[null,null,{"$f":"DaysAndWeeks+DATE(역년,1,1)-WEEKDAY(DATE(역년,1,1),(WeekStart=\"월\")+1)+1","v":"2017-12-31"},"2018-01-01","2018-01-02","2018-01-03","2018-01-04","2018-01-05","2018-01-06"]
[null,null,{"$f":"IF(DAY(CalendarDay)=1,CONCATENATE(WEEKNUM(CalendarDay),\"주/ \",CalendarDay-DATE(YEAR(CalendarDay),1,0),\"일 \"),CONCATENATE(CalendarDay-DATE(YEAR(CalendarDay),1,0),\"일 \"))","v":"365일 "},{"$f":"IF(DAY(CalendarDay)=1,CONCATENATE(WEEKNUM(CalendarDay),\"주/ \",CalendarDay-DATE(YEAR(CalendarDay),1,0),\"일 \"),CONCATENATE(CalendarDay-DATE(YEAR(CalendarDay),1,0),\"일 \"))","v":"1주/ 1일 "},{"$f":"IF(DAY(CalendarDay)=1,CONCATENATE(WEEKNUM(CalendarDay),\"주/ \",CalendarDay-DATE(YEAR(CalendarDay),1,0),\"일 \"),CONCATENATE(CalendarDay-DATE(YEAR(CalendarDay),1,0),\"일 \"))","v":"2일 "},{"$f":"IF(DAY(CalendarDay)=1,CONCATENATE(WEEKNUM(CalendarDay),\"주/ \",CalendarDay-DATE(YEAR(CalendarDay),1,0),\"일 \"),CONCATENATE(CalendarDay-DATE(YEAR(CalendarDay),1,0),\"일 \"))","v":"3일 "},{"$f":"IF(DAY(CalendarDay)=1,CONCATENATE(WEEKNUM(CalendarDay),\"주/ \",CalendarDay-DATE(YEAR(CalendarDay),1,0),\"일 \"),CONCATENATE(CalendarDay-DATE(YEAR(CalendarDay),1,0),\"일 \"))","v":"4일 "},{"$f":"IF(DAY(CalendarDay)=1,CONCATENATE(WEEKNUM(CalendarDay),\"주/ \",CalendarDay-DATE(YEAR(CalendarDay),1,0),\"일 \"),CONCATENATE(CalendarDay-DATE(YEAR(CalendarDay),1,0),\"일 \"))","v":"5일 "},{"$f":"IF(DAY(CalendarDay)=1,CONCATENATE(WEEKNUM(CalendarDay),\"주/ \",CalendarDay-DATE(YEAR(CalendarDay),1,0),\"일 \"),CONCATENATE(CalendarDay-DATE(YEAR(CalendarDay),1,0),\"일 \"))","v":"6일 "}]
[]
[null,null,{"$f":"DaysAndWeeks+DATE(역년,1,1)-WEEKDAY(DATE(역년,1,1),(WeekStart=\"월\")+1)+8","v":"2018-01-07"},"2018-01-08","2018-01-09","2018-01-10","2018-01-11","2018-01-12","2018-01-13"]
[null,null,{"$f":"IF(WEEKDAY(CalendarDay)=WeekStartValue,CONCATENATE(WEEKNUM(CalendarDay),\"주/ \",CalendarDay-DATE(YEAR(CalendarDay),1,0),\"일 \"),CONCATENATE(CalendarDay-DATE(YEAR(CalendarDay),1,0),\"일 \"))","v":"2주/ 7일 "},{"$f":"IF(WEEKDAY(CalendarDay)=WeekStartValue,CONCATENATE(WEEKNUM(CalendarDay),\"주/ \",CalendarDay-DATE(YEAR(CalendarDay),1,0),\"일 \"),CONCATENATE(CalendarDay-DATE(YEAR(CalendarDay),1,0),\"일 \"))","v":"8일 "},{"$f":"IF(WEEKDAY(CalendarDay)=WeekStartValue,CONCATENATE(WEEKNUM(CalendarDay),\"주/ \",CalendarDay-DATE(YEAR(CalendarDay),1,0),\"일 \"),CONCATENATE(CalendarDay-DATE(YEAR(CalendarDay),1,0),\"일 \"))","v":"9일 "},{"$f":"IF(WEEKDAY(CalendarDay)=WeekStartValue,CONCATENATE(WEEKNUM(CalendarDay),\"주/ \",CalendarDay-DATE(YEAR(CalendarDay),1,0),\"일 \"),CONCATENATE(CalendarDay-DATE(YEAR(CalendarDay),1,0),\"일 \"))","v":"10일 "},{"$f":"IF(WEEKDAY(CalendarDay)=WeekStartValue,CONCATENATE(WEEKNUM(CalendarDay),\"주/ \",CalendarDay-DATE(YEAR(CalendarDay),1,0),\"일 \"),CONCATENATE(CalendarDay-DATE(YEAR(CalendarDay),1,0),\"일 \"))","v":"11일 "},{"$f":"IF(WEEKDAY(CalendarDay)=WeekStartValue,CONCATENATE(WEEKNUM(CalendarDay),\"주/ \",CalendarDay-DATE(YEAR(CalendarDay),1,0),\"일 \"),CONCATENATE(CalendarDay-DATE(YEAR(CalendarDay),1,0),\"일 \"))","v":"12일 "},{"$f":"IF(WEEKDAY(CalendarDay)=WeekStartValue,CONCATENATE(WEEKNUM(CalendarDay),\"주/ \",CalendarDay-DATE(YEAR(CalendarDay),1,0),\"일 \"),CONCATENATE(CalendarDay-DATE(YEAR(CalendarDay),1,0),\"일 \"))","v":"13일 "}]
[]
[null,null,{"$f":"DaysAndWeeks+DATE(역년,1,1)-WEEKDAY(DATE(역년,1,1),(WeekStart=\"월\")+1)+15","v":"2018-01-14"},"2018-01-15","2018-01-16","2018-01-17","2018-01-18","2018-01-19","2018-01-20"]
[null,null,{"$f":"IF(WEEKDAY(CalendarDay)=WeekStartValue,CONCATENATE(WEEKNUM(CalendarDay),\"주/ \",CalendarDay-DATE(YEAR(CalendarDay),1,0),\"일 \"),CONCATENATE(CalendarDay-DATE(YEAR(CalendarDay),1,0),\"일 \"))","v":"3주/ 14일 "},{"$f":"IF(WEEKDAY(CalendarDay)=WeekStartValue,CONCATENATE(WEEKNUM(CalendarDay),\"주/ \",CalendarDay-DATE(YEAR(CalendarDay),1,0),\"일 \"),CONCATENATE(CalendarDay-DATE(YEAR(CalendarDay),1,0),\"일 \"))","v":"15일 "},{"$f":"IF(WEEKDAY(CalendarDay)=WeekStartValue,CONCATENATE(WEEKNUM(CalendarDay),\"주/ \",CalendarDay-DATE(YEAR(CalendarDay),1,0),\"일 \"),CONCATENATE(CalendarDay-DATE(YEAR(CalendarDay),1,0),\"일 \"))","v":"16일 "},{"$f":"IF(WEEKDAY(CalendarDay)=WeekStartValue,CONCATENATE(WEEKNUM(CalendarDay),\"주/ \",CalendarDay-DATE(YEAR(CalendarDay),1,0),\"일 \"),CONCATENATE(CalendarDay-DATE(YEAR(CalendarDay),1,0),\"일 \"))","v":"17일 "},{"$f":"IF(WEEKDAY(CalendarDay)=WeekStartValue,CONCATENATE(WEEKNUM(CalendarDay),\"주/ \",CalendarDay-DATE(YEAR(CalendarDay),1,0),\"일 \"),CONCATENATE(CalendarDay-DATE(YEAR(CalendarDay),1,0),\"일 \"))","v":"18일 "},{"$f":"IF(WEEKDAY(CalendarDay)=WeekStartValue,CONCATENATE(WEEKNUM(CalendarDay),\"주/ \",CalendarDay-DATE(YEAR(CalendarDay),1,0),\"일 \"),CONCATENATE(CalendarDay-DATE(YEAR(CalendarDay),1,0),\"일 \"))","v":"19일 "},{"$f":"IF(WEEKDAY(CalendarDay)=WeekStartValue,CONCATENATE(WEEKNUM(CalendarDay),\"주/ \",CalendarDay-DATE(YEAR(CalendarDay),1,0),\"일 \"),CONCATENATE(CalendarDay-DATE(YEAR(CalendarDay),1,0),\"일 \"))","v":"20일 "}]
[]
[null,null,{"$f":"DaysAndWeeks+DATE(역년,1,1)-WEEKDAY(DATE(역년,1,1),(WeekStart=\"월\")+1)+22","v":"2018-01-21"},"2018-01-22","2018-01-23","2018-01-24","2018-01-25","2018-01-26","2018-01-27"]
[null,null,{"$f":"IF(WEEKDAY(CalendarDay)=WeekStartValue,CONCATENATE(WEEKNUM(CalendarDay),\"주/ \",CalendarDay-DATE(YEAR(CalendarDay),1,0),\"일 \"),CONCATENATE(CalendarDay-DATE(YEAR(CalendarDay),1,0),\"일 \"))","v":"4주/ 21일 "},{"$f":"IF(WEEKDAY(CalendarDay)=WeekStartValue,CONCATENATE(WEEKNUM(CalendarDay),\"주/ \",CalendarDay-DATE(YEAR(CalendarDay),1,0),\"일 \"),CONCATENATE(CalendarDay-DATE(YEAR(CalendarDay),1,0),\"일 \"))","v":"22일 "},{"$f":"IF(WEEKDAY(CalendarDay)=WeekStartValue,CONCATENATE(WEEKNUM(CalendarDay),\"주/ \",CalendarDay-DATE(YEAR(CalendarDay),1,0),\"일 \"),CONCATENATE(CalendarDay-DATE(YEAR(CalendarDay),1,0),\"일 \"))","v":"23일 "},{"$f":"IF(WEEKDAY(CalendarDay)=WeekStartValue,CONCATENATE(WEEKNUM(CalendarDay),\"주/ \",CalendarDay-DATE(YEAR(CalendarDay),1,0),\"일 \"),CONCATENATE(CalendarDay-DATE(YEAR(CalendarDay),1,0),\"일 \"))","v":"24일 "},{"$f":"IF(WEEKDAY(CalendarDay)=WeekStartValue,CONCATENATE(WEEKNUM(CalendarDay),\"주/ \",CalendarDay-DATE(YEAR(CalendarDay),1,0),\"일 \"),CONCATENATE(CalendarDay-DATE(YEAR(CalendarDay),1,0),\"일 \"))","v":"25일 "},{"$f":"IF(WEEKDAY(CalendarDay)=WeekStartValue,CONCATENATE(WEEKNUM(CalendarDay),\"주/ \",CalendarDay-DATE(YEAR(CalendarDay),1,0),\"일 \"),CONCATENATE(CalendarDay-DATE(YEAR(CalendarDay),1,0),\"일 \"))","v":"26일 "},{"$f":"IF(WEEKDAY(CalendarDay)=WeekStartValue,CONCATENATE(WEEKNUM(CalendarDay),\"주/ \",CalendarDay-DATE(YEAR(CalendarDay),1,0),\"일 \"),CONCATENATE(CalendarDay-DATE(YEAR(CalendarDay),1,0),\"일 \"))","v":"27일 "}]
[]
[null,null,{"$f":"DaysAndWeeks+DATE(역년,1,1)-WEEKDAY(DATE(역년,1,1),(WeekStart=\"월\")+1)+29","v":"2018-01-28"},"2018-01-29","2018-01-30","2018-01-31","2018-02-01","2018-02-02","2018-02-03"]
[null,null,{"$f":"IF(WEEKDAY(CalendarDay)=WeekStartValue,CONCATENATE(WEEKNUM(CalendarDay),\"주/ \",CalendarDay-DATE(YEAR(CalendarDay),1,0),\"일 \"),CONCATENATE(CalendarDay-DATE(YEAR(CalendarDay),1,0),\"일 \"))","v":"5주/ 28일 "},{"$f":"IF(WEEKDAY(CalendarDay)=WeekStartValue,CONCATENATE(WEEKNUM(CalendarDay),\"주/ \",CalendarDay-DATE(YEAR(CalendarDay),1,0),\"일 \"),CONCATENATE(CalendarDay-DATE(YEAR(CalendarDay),1,0),\"일 \"))","v":"29일 "},{"$f":"IF(WEEKDAY(CalendarDay)=WeekStartValue,CONCATENATE(WEEKNUM(CalendarDay),\"주/ \",CalendarDay-DATE(YEAR(CalendarDay),1,0),\"일 \"),CONCATENATE(CalendarDay-DATE(YEAR(CalendarDay),1,0),\"일 \"))","v":"30일 "},{"$f":"IF(WEEKDAY(CalendarDay)=WeekStartValue,CONCATENATE(WEEKNUM(CalendarDay),\"주/ \",CalendarDay-DATE(YEAR(CalendarDay),1,0),\"일 \"),CONCATENATE(CalendarDay-DATE(YEAR(CalendarDay),1,0),\"일 \"))","v":"31일 "},{"$f":"IF(WEEKDAY(CalendarDay)=WeekStartValue,CONCATENATE(WEEKNUM(CalendarDay),\"주/ \",CalendarDay-DATE(YEAR(CalendarDay),1,0),\"일 \"),CONCATENATE(CalendarDay-DATE(YEAR(CalendarDay),1,0),\"일 \"))","v":"32일 "},{"$f":"IF(WEEKDAY(CalendarDay)=WeekStartValue,CONCATENATE(WEEKNUM(CalendarDay),\"주/ \",CalendarDay-DATE(YEAR(CalendarDay),1,0),\"일 \"),CONCATENATE(CalendarDay-DATE(YEAR(CalendarDay),1,0),\"일 \"))","v":"33일 "},{"$f":"IF(WEEKDAY(CalendarDay)=WeekStartValue,CONCATENATE(WEEKNUM(CalendarDay),\"주/ \",CalendarDay-DATE(YEAR(CalendarDay),1,0),\"일 \"),CONCATENATE(CalendarDay-DATE(YEAR(CalendarDay),1,0),\"일 \"))","v":"34일 "}]
[{"$nulls":4},"메모"]
[]
[null,null,{"$f":"DaysAndWeeks+DATE(역년,1,1)-WEEKDAY(DATE(역년,1,1),(WeekStart=\"월\")+1)+36","v":"2018-02-04"},"2018-02-05"]
[null,null,{"$f":"IF(WEEKDAY(CalendarDay)=WeekStartValue,CONCATENATE(WEEKNUM(CalendarDay),\"주/ \",CalendarDay-DATE(YEAR(CalendarDay),1,0),\"일 \"),CONCATENATE(CalendarDay-DATE(YEAR(CalendarDay),1,0),\"일 \"))","v":"6주/ 35일 "},{"$f":"IF(WEEKDAY(CalendarDay)=WeekStartValue,CONCATENATE(WEEKNUM(CalendarDay),\"주/ \",CalendarDay-DATE(YEAR(CalendarDay),1,0),\"일 \"),CONCATENATE(CalendarDay-DATE(YEAR(CalendarDay),1,0),\"일 \"))","v":"36일 "}]

{"sheet":"2월","index":1,"n_rows":20,"n_cols":9,"rows_kept":20,"merged":[[16,2,17,2],[17,4,19,8]]}
[null,"2월",{"$f":"UPPER(TEXT(WeekStart,\"ddd\"))","v":"일"},{"$f":"UPPER(TEXT(D3,\"aaa\"))","v":"월"},"화","수","목","금","토"]
[null,{"$f":"역년","v":2018}]
[null,null,{"$f":"DaysAndWeeks+DATE(역년,2,1)-WEEKDAY(DATE(역년,2,1),(WeekStart=\"월\")+1)+1","v":"2018-01-28"},"2018-01-29","2018-01-30","2018-01-31","2018-02-01","2018-02-02","2018-02-03"]
[null,null,{"$f":"IF(DAY(CalendarDay)=1,CONCATENATE(WEEKNUM(CalendarDay),\"주/ \",CalendarDay-DATE(YEAR(CalendarDay),1,0),\"일 \"),CONCATENATE(CalendarDay-DATE(YEAR(CalendarDay),1,0),\"일 \"))","v":"28일 "},{"$f":"IF(DAY(CalendarDay)=1,CONCATENATE(WEEKNUM(CalendarDay),\"주/ \",CalendarDay-DATE(YEAR(CalendarDay),1,0),\"일 \"),CONCATENATE(CalendarDay-DATE(YEAR(CalendarDay),1,0),\"일 \"))","v":"29일 "},{"$f":"IF(DAY(CalendarDay)=1,CONCATENATE(WEEKNUM(CalendarDay),\"주/ \",CalendarDay-DATE(YEAR(CalendarDay),1,0),\"일 \"),CONCATENATE(CalendarDay-DATE(YEAR(CalendarDay),1,0),\"일 \"))","v":"30일 "},{"$f":"IF(DAY(CalendarDay)=1,CONCATENATE(WEEKNUM(CalendarDay),\"주/ \",CalendarDay-DATE(YEAR(CalendarDay),1,0),\"일 \"),CONCATENATE(CalendarDay-DATE(YEAR(CalendarDay),1,0),\"일 \"))","v":"31일 "},{"$f":"IF(DAY(CalendarDay)=1,CONCATENATE(WEEKNUM(CalendarDay),\"주/ \",CalendarDay-DATE(YEAR(CalendarDay),1,0),\"일 \"),CONCATENATE(CalendarDay-DATE(YEAR(CalendarDay),1,0),\"일 \"))","v":"5주/ 32일 "},{"$f":"IF(DAY(CalendarDay)=1,CONCATENATE(WEEKNUM(CalendarDay),\"주/ \",CalendarDay-DATE(YEAR(CalendarDay),1,0),\"일 \"),CONCATENATE(CalendarDay-DATE(YEAR(CalendarDay),1,0),\"일 \"))","v":"33일 "},{"$f":"IF(DAY(CalendarDay)=1,CONCATENATE(WEEKNUM(CalendarDay),\"주/ \",CalendarDay-DATE(YEAR(CalendarDay),1,0),\"일 \"),CONCATENATE(CalendarDay-DATE(YEAR(CalendarDay),1,0),\"일 \"))","v":"34일 "}]
[]
[null,null,{"$f":"DaysAndWeeks+DATE(역년,2,1)-WEEKDAY(DATE(역년,2,1),(WeekStart=\"월\")+1)+8","v":"2018-02-04"},"2018-02-05","2018-02-06","2018-02-07","2018-02-08","2018-02-09","2018-02-10"]
[null,null,{"$f":"IF(WEEKDAY(CalendarDay)=WeekStartValue,CONCATENATE(WEEKNUM(CalendarDay),\"주/ \",CalendarDay-DATE(YEAR(CalendarDay),1,0),\"일 \"),CONCATENATE(CalendarDay-DATE(YEAR(CalendarDay),1,0),\"일 \"))","v":"6주/ 35일 "},{"$f":"IF(WEEKDAY(CalendarDay)=WeekStartValue,CONCATENATE(WEEKNUM(CalendarDay),\"주/ \",CalendarDay-DATE(YEAR(CalendarDay),1,0),\"일 \"),CONCATENATE(CalendarDay-DATE(YEAR(CalendarDay),1,0),\"일 \"))","v":"36일 "},{"$f":"IF(WEEKDAY(CalendarDay)=WeekStartValue,CONCATENATE(WEEKNUM(CalendarDay),\"주/ \",CalendarDay-DATE(YEAR(CalendarDay),1,0),\"일 \"),CONCATENATE(CalendarDay-DATE(YEAR(CalendarDay),1,0),\"일 \"))","v":"37일 "},{"$f":"IF(WEEKDAY(CalendarDay)=WeekStartValue,CONCATENATE(WEEKNUM(CalendarDay),\"주/ \",CalendarDay-DATE(YEAR(CalendarDay),1,0),\"일 \"),CONCATENATE(CalendarDay-DATE(YEAR(CalendarDay),1,0),\"일 \"))","v":"38일 "},{"$f":"IF(WEEKDAY(CalendarDay)=WeekStartValue,CONCATENATE(WEEKNUM(CalendarDay),\"주/ \",CalendarDay-DATE(YEAR(CalendarDay),1,0),\"일 \"),CONCATENATE(CalendarDay-DATE(YEAR(CalendarDay),1,0),\"일 \"))","v":"39일 "},{"$f":"IF(WEEKDAY(CalendarDay)=WeekStartValue,CONCATENATE(WEEKNUM(CalendarDay),\"주/ \",CalendarDay-DATE(YEAR(CalendarDay),1,0),\"일 \"),CONCATENATE(CalendarDay-DATE(YEAR(CalendarDay),1,0),\"일 \"))","v":"40일 "},{"$f":"IF(WEEKDAY(CalendarDay)=WeekStartValue,CONCATENATE(WEEKNUM(CalendarDay),\"주/ \",CalendarDay-DATE(YEAR(CalendarDay),1,0),\"일 \"),CONCATENATE(CalendarDay-DATE(YEAR(CalendarDay),1,0),\"일 \"))","v":"41일 "}]
[]
[null,null,{"$f":"DaysAndWeeks+DATE(역년,2,1)-WEEKDAY(DATE(역년,2,1),(WeekStart=\"월\")+1)+15","v":"2018-02-11"},"2018-02-12","2018-02-13","2018-02-14","2018-02-15","2018-02-16","2018-02-17"]
[null,null,{"$f":"IF(WEEKDAY(CalendarDay)=WeekStartValue,CONCATENATE(WEEKNUM(CalendarDay),\"주/ \",CalendarDay-DATE(YEAR(CalendarDay),1,0),\"일 \"),CONCATENATE(CalendarDay-DATE(YEAR(CalendarDay),1,0),\"일 \"))","v":"7주/ 42일 "},{"$f":"IF(WEEKDAY(CalendarDay)=WeekStartValue,CONCATENATE(WEEKNUM(CalendarDay),\"주/ \",CalendarDay-DATE(YEAR(CalendarDay),1,0),\"일 \"),CONCATENATE(CalendarDay-DATE(YEAR(CalendarDay),1,0),\"일 \"))","v":"43일 "},{"$f":"IF(WEEKDAY(CalendarDay)=WeekStartValue,CONCATENATE(WEEKNUM(CalendarDay),\"주/ \",CalendarDay-DATE(YEAR(CalendarDay),1,0),\"일 \"),CONCATENATE(CalendarDay-DATE(YEAR(CalendarDay),1,0),\"일 \"))","v":"44일 "},{"$f":"IF(WEEKDAY(CalendarDay)=WeekStartValue,CONCATENATE(WEEKNUM(CalendarDay),\"주/ \",CalendarDay-DATE(YEAR(CalendarDay),1,0),\"일 \"),CONCATENATE(CalendarDay-DATE(YEAR(CalendarDay),1,0),\"일 \"))","v":"45일 "},{"$f":"IF(WEEKDAY(CalendarDay)=WeekStartValue,CONCATENATE(WEEKNUM(CalendarDay),\"주/ \",CalendarDay-DATE(YEAR(CalendarDay),1,0),\"일 \"),CONCATENATE(CalendarDay-DATE(YEAR(CalendarDay),1,0),\"일 \"))","v":"46일 "},{"$f":"IF(WEEKDAY(CalendarDay)=WeekStartValue,CONCATENATE(WEEKNUM(CalendarDay),\"주/ \",CalendarDay-DATE(YEAR(CalendarDay),1,0),\"일 \"),CONCATENATE(CalendarDay-DATE(YEAR(CalendarDay),1,0),\"일 \"))","v":"47일 "},{"$f":"IF(WEEKDAY(CalendarDay)=WeekStartValue,CONCATENATE(WEEKNUM(CalendarDay),\"주/ \",CalendarDay-DATE(YEAR(CalendarDay),1,0),\"일 \"),CONCATENATE(CalendarDay-DATE(YEAR(CalendarDay),1,0),\"일 \"))","v":"48일 "}]
[]
[null,null,{"$f":"DaysAndWeeks+DATE(역년,2,1)-WEEKDAY(DATE(역년,2,1),(WeekStart=\"월\")+1)+22","v":"2018-02-18"},"2018-02-19","2018-02-20","2018-02-21","2018-02-22","2018-02-23","2018-02-24"]
[null,null,{"$f":"IF(WEEKDAY(CalendarDay)=WeekStartValue,CONCATENATE(WEEKNUM(CalendarDay),\"주/ \",CalendarDay-DATE(YEAR(CalendarDay),1,0),\"일 \"),CONCATENATE(CalendarDay-DATE(YEAR(CalendarDay),1,0),\"일 \"))","v":"8주/ 49일 "},{"$f":"IF(WEEKDAY(CalendarDay)=WeekStartValue,CONCATENATE(WEEKNUM(CalendarDay),\"주/ \",CalendarDay-DATE(YEAR(CalendarDay),1,0),\"일 \"),CONCATENATE(CalendarDay-DATE(YEAR(CalendarDay),1,0),\"일 \"))","v":"50일 "},{"$f":"IF(WEEKDAY(CalendarDay)=WeekStartValue,CONCATENATE(WEEKNUM(CalendarDay),\"주/ \",CalendarDay-DATE(YEAR(CalendarDay),1,0),\"일 \"),CONCATENATE(CalendarDay-DATE(YEAR(CalendarDay),1,0),\"일 \"))","v":"51일 "},{"$f":"IF(WEEKDAY(CalendarDay)=WeekStartValue,CONCATENATE(WEEKNUM(CalendarDay),\"주/ \",CalendarDay-DATE(YEAR(CalendarDay),1,0),\"일 \"),CONCATENATE(CalendarDay-DATE(YEAR(CalendarDay),1,0),\"일 \"))","v":"52일 "},{"$f":"IF(WEEKDAY(CalendarDay)=WeekStartValue,CONCATENATE(WEEKNUM(CalendarDay),\"주/ \",CalendarDay-DATE(YEAR(CalendarDay),1,0),\"일 \"),CONCATENATE(CalendarDay-DATE(YEAR(CalendarDay),1,0),\"일 \"))","v":"53일 "},{"$f":"IF(WEEKDAY(CalendarDay)=WeekStartValue,CONCATENATE(WEEKNUM(CalendarDay),\"주/ \",CalendarDay-DATE(YEAR(CalendarDay),1,0),\"일 \"),CONCATENATE(CalendarDay-DATE(YEAR(CalendarDay),1,0),\"일 \"))","v":"54일 "},{"$f":"IF(WEEKDAY(CalendarDay)=WeekStartValue,CONCATENATE(WEEKNUM(CalendarDay),\"주/ \",CalendarDay-DATE(YEAR(CalendarDay),1,0),\"일 \"),CONCATENATE(CalendarDay-DATE(YEAR(CalendarDay),1,0),\"일 \"))","v":"55일 "}]
[]
[null,null,{"$f":"DaysAndWeeks+DATE(역년,2,1)-WEEKDAY(DATE(역년,2,1),(WeekStart=\"월\")+1)+29","v":"2018-02-25"},"2018-02-26","2018-02-27","2018-02-28","2018-03-01","2018-03-02","2018-03-03"]
[null,null,{"$f":"IF(WEEKDAY(CalendarDay)=WeekStartValue,CONCATENATE(WEEKNUM(CalendarDay),\"주/ \",CalendarDay-DATE(YEAR(CalendarDay),1,0),\"일 \"),CONCATENATE(CalendarDay-DATE(YEAR(CalendarDay),1,0),\"일 \"))","v":"9주/ 56일 "},{"$f":"IF(WEEKDAY(CalendarDay)=WeekStartValue,CONCATENATE(WEEKNUM(CalendarDay),\"주/ \",CalendarDay-DATE(YEAR(CalendarDay),1,0),\"일 \"),CONCATENATE(CalendarDay-DATE(YEAR(CalendarDay),1,0),\"일 \"))","v":"57일 "},{"$f":"IF(WEEKDAY(CalendarDay)=WeekStartValue,CONCATENATE(WEEKNUM(CalendarDay),\"주/ \",CalendarDay-DATE(YEAR(CalendarDay),1,0),\"일 \"),CONCATENATE(CalendarDay-DATE(YEAR(CalendarDay),1,0),\"일 \"))","v":"58일 "},{"$f":"IF(WEEKDAY(CalendarDay)=WeekStartValue,CONCATENATE(WEEKNUM(CalendarDay),\"주/ \",CalendarDay-DATE(YEAR(CalendarDay),1,0),\"일 \"),CONCATENATE(CalendarDay-DATE(YEAR(CalendarDay),1,0),\"일 \"))","v":"59일 "},{"$f":"IF(WEEKDAY(CalendarDay)=WeekStartValue,CONCATENATE(WEEKNUM(CalendarDay),\"주/ \",CalendarDay-DATE(YEAR(CalendarDay),1,0),\"일 \"),CONCATENATE(CalendarDay-DATE(YEAR(CalendarDay),1,0),\"일 \"))","v":"60일 "},{"$f":"IF(WEEKDAY(CalendarDay)=WeekStartValue,CONCATENATE(WEEKNUM(CalendarDay),\"주/ \",CalendarDay-DATE(YEAR(CalendarDay),1,0),\"일 \"),CONCATENATE(CalendarDay-DATE(YEAR(CalendarDay),1,0),\"일 \"))","v":"61일 "},{"$f":"IF(WEEKDAY(CalendarDay)=WeekStartValue,CONCATENATE(WEEKNUM(CalendarDay),\"주/ \",CalendarDay-DATE(YEAR(CalendarDay),1,0),\"일 \"),CONCATENATE(CalendarDay-DATE(YEAR(CalendarDay),1,0),\"일 \"))","v":"62일 "}]
[{"$nulls":4},"메모"]
[]
[null,null,{"$f":"DaysAndWeeks+DATE(역년,2,1)-WEEKDAY(DATE(역년,2,1),(WeekStart=\"월\")+1)+36","v":"2018-03-04"},"2018-03-05"]
[null,null,{"$f":"IF(WEEKDAY(CalendarDay)=WeekStartValue,CONCATENATE(WEEKNUM(CalendarDay),\"주/ \",CalendarDay-DATE(YEAR(CalendarDay),1,0),\"일 \"),CONCATENATE(CalendarDay-DATE(YEAR(CalendarDay),1,0),\"일 \"))","v":"10주/ 63일 "},{"$f":"IF(WEEKDAY(CalendarDay)=WeekStartValue,CONCATENATE(WEEKNUM(CalendarDay),\"주/ \",CalendarDay-DATE(YEAR(CalendarDay),1,0),\"일 \"),CONCATENATE(CalendarDay-DATE(YEAR(CalendarDay),1,0),\"일 \"))","v":"64일 "}]

{"sheet":"3월","index":2,"n_rows":20,"n_cols":9,"rows_kept":20,"merged":[[16,2,17,2],[17,4,19,8]]}
[null,"3월",{"$f":"UPPER(TEXT(WeekStart,\"ddd\"))","v":"일"},{"$f":"UPPER(TEXT(D3,\"aaa\"))","v":"월"},"화","수","목","금","토"]
[null,{"$f":"역년","v":2018}]
[null,null,{"$f":"DaysAndWeeks+DATE(역년,3,1)-WEEKDAY(DATE(역년,3,1),(WeekStart=\"월\")+1)+1","v":"2018-02-25"},"2018-02-26","2018-02-27","2018-02-28","2018-03-01","2018-03-02","2018-03-03"]
[null,null,{"$f":"IF(DAY(CalendarDay)=1,CONCATENATE(WEEKNUM(CalendarDay),\"주/ \",CalendarDay-DATE(YEAR(CalendarDay),1,0),\"일 \"),CONCATENATE(CalendarDay-DATE(YEAR(CalendarDay),1,0),\"일 \"))","v":"56일 "},{"$f":"IF(DAY(CalendarDay)=1,CONCATENATE(WEEKNUM(CalendarDay),\"주/ \",CalendarDay-DATE(YEAR(CalendarDay),1,0),\"일 \"),CONCATENATE(CalendarDay-DATE(YEAR(CalendarDay),1,0),\"일 \"))","v":"57일 "},{"$f":"IF(DAY(CalendarDay)=1,CONCATENATE(WEEKNUM(CalendarDay),\"주/ \",CalendarDay-DATE(YEAR(CalendarDay),1,0),\"일 \"),CONCATENATE(CalendarDay-DATE(YEAR(CalendarDay),1,0),\"일 \"))","v":"58일 "},{"$f":"IF(DAY(CalendarDay)=1,CONCATENATE(WEEKNUM(CalendarDay),\"주/ \",CalendarDay-DATE(YEAR(CalendarDay),1,0),\"일 \"),CONCATENATE(CalendarDay-DATE(YEAR(CalendarDay),1,0),\"일 \"))","v":"59일 "},{"$f":"IF(DAY(CalendarDay)=1,CONCATENATE(WEEKNUM(CalendarDay),\"주/ \",CalendarDay-DATE(YEAR(CalendarDay),1,0),\"일 \"),CONCATENATE(CalendarDay-DATE(YEAR(CalendarDay),1,0),\"일 \"))","v":"9주/ 60일 "},{"$f":"IF(DAY(CalendarDay)=1,CONCATENATE(WEEKNUM(CalendarDay),\"주/ \",CalendarDay-DATE(YEAR(CalendarDay),1,0),\"일 \"),CONCATENATE(CalendarDay-DATE(YEAR(CalendarDay),1,0),\"일 \"))","v":"61일 "},{"$f":"IF(DAY(CalendarDay)=1,CONCATENATE(WEEKNUM(CalendarDay),\"주/ \",CalendarDay-DATE(YEAR(CalendarDay),1,0),\"일 \"),CONCATENATE(CalendarDay-DATE(YEAR(CalendarDay),1,0),\"일 \"))","v":"62일 "}]
[]
[null,null,{"$f":"DaysAndWeeks+DATE(역년,3,1)-WEEKDAY(DATE(역년,3,1),(WeekStart=\"월\")+1)+8","v":"2018-03-04"},"2018-03-05","2018-03-06","2018-03-07","2018-03-08","2018-03-09","2018-03-10"]
[null,null,{"$f":"IF(WEEKDAY(CalendarDay)=WeekStartValue,CONCATENATE(WEEKNUM(CalendarDay),\"주/ \",CalendarDay-DATE(YEAR(CalendarDay),1,0),\"일 \"),CONCATENATE(CalendarDay-DATE(YEAR(CalendarDay),1,0),\"일 \"))","v":"10주/ 63일 "},{"$f":"IF(WEEKDAY(CalendarDay)=WeekStartValue,CONCATENATE(WEEKNUM(CalendarDay),\"주/ \",CalendarDay-DATE(YEAR(CalendarDay),1,0),\"일 \"),CONCATENATE(CalendarDay-DATE(YEAR(CalendarDay),1,0),\"일 \"))","v":"64일 "},{"$f":"IF(WEEKDAY(CalendarDay)=WeekStartValue,CONCATENATE(WEEKNUM(CalendarDay),\"주/ \",CalendarDay-DATE(YEAR(CalendarDay),1,0),\"일 \"),CONCATENATE(CalendarDay-DATE(YEAR(CalendarDay),1,0),\"일 \"))","v":"65일 "},{"$f":"IF(WEEKDAY(CalendarDay)=WeekStartValue,CONCATENATE(WEEKNUM(CalendarDay),\"주/ \",CalendarDay-DATE(YEAR(CalendarDay),1,0),\"일 \"),CONCATENATE(CalendarDay-DATE(YEAR(CalendarDay),1,0),\"일 \"))","v":"66일 "},{"$f":"IF(WEEKDAY(CalendarDay)=WeekStartValue,CONCATENATE(WEEKNUM(CalendarDay),\"주/ \",CalendarDay-DATE(YEAR(CalendarDay),1,0),\"일 \"),CONCATENATE(CalendarDay-DATE(YEAR(CalendarDay),1,0),\"일 \"))","v":"67일 "},{"$f":"IF(WEEKDAY(CalendarDay)=WeekStartValue,CONCATENATE(WEEKNUM(CalendarDay),\"주/ \",CalendarDay-DATE(YEAR(CalendarDay),1,0),\"일 \"),CONCATENATE(CalendarDay-DATE(YEAR(CalendarDay),1,0),\"일 \"))","v":"68일 "},{"$f":"IF(WEEKDAY(CalendarDay)=WeekStartValue,CONCATENATE(WEEKNUM(CalendarDay),\"주/ \",CalendarDay-DATE(YEAR(CalendarDay),1,0),\"일 \"),CONCATENATE(CalendarDay-DATE(YEAR(CalendarDay),1,0),\"일 \"))","v":"69일 "}]
[]
[null,null,{"$f":"DaysAndWeeks+DATE(역년,3,1)-WEEKDAY(DATE(역년,3,1),(WeekStart=\"월\")+1)+15","v":"2018-03-11"},"2018-03-12","2018-03-13","2018-03-14","2018-03-15","2018-03-16","2018-03-17"]
[null,null,{"$f":"IF(WEEKDAY(CalendarDay)=WeekStartValue,CONCATENATE(WEEKNUM(CalendarDay),\"주/ \",CalendarDay-DATE(YEAR(CalendarDay),1,0),\"일 \"),CONCATENATE(CalendarDay-DATE(YEAR(CalendarDay),1,0),\"일 \"))","v":"11주/ 70일 "},{"$f":"IF(WEEKDAY(CalendarDay)=WeekStartValue,CONCATENATE(WEEKNUM(CalendarDay),\"주/ \",CalendarDay-DATE(YEAR(CalendarDay),1,0),\"일 \"),CONCATENATE(CalendarDay-DATE(YEAR(CalendarDay),1,0),\"일 \"))","v":"71일 "},{"$f":"IF(WEEKDAY(CalendarDay)=WeekStartValue,CONCATENATE(WEEKNUM(CalendarDay),\"주/ \",CalendarDay-DATE(YEAR(CalendarDay),1,0),\"일 \"),CONCATENATE(CalendarDay-DATE(YEAR(CalendarDay),1,0),\"일 \"))","v":"72일 "},{"$f":"IF(WEEKDAY(CalendarDay)=WeekStartValue,CONCATENATE(WEEKNUM(CalendarDay),\"주/ \",CalendarDay-DATE(YEAR(CalendarDay),1,0),\"일 \"),CONCATENATE(CalendarDay-DATE(YEAR(CalendarDay),1,0),\"일 \"))","v":"73일 "},{"$f":"IF(WEEKDAY(CalendarDay)=WeekStartValue,CONCATENATE(WEEKNUM(CalendarDay),\"주/ \",CalendarDay-DATE(YEAR(CalendarDay),1,0),\"일 \"),CONCATENATE(CalendarDay-DATE(YEAR(CalendarDay),1,0),\"일 \"))","v":"74일 "},{"$f":"IF(WEEKDAY(CalendarDay)=WeekStartValue,CONCATENATE(WEEKNUM(CalendarDay),\"주/ \",CalendarDay-DATE(YEAR(CalendarDay),1,0),\"일 \"),CONCATENATE(CalendarDay-DATE(YEAR(CalendarDay),1,0),\"일 \"))","v":"75일 "},{"$f":"IF(WEEKDAY(CalendarDay)=WeekStartValue,CONCATENATE(WEEKNUM(CalendarDay),\"주/ \",CalendarDay-DATE(YEAR(CalendarDay),1,0),\"일 \"),CONCATENATE(CalendarDay-DATE(YEAR(CalendarDay),1,0),\"일 \"))","v":"76일 "}]
[]
[null,null,{"$f":"DaysAndWeeks+DATE(역년,3,1)-WEEKDAY(DATE(역년,3,1),(WeekStart=\"월\")+1)+22","v":"2018-03-18"},"2018-03-19","2018-03-20","2018-03-21","2018-03-22","2018-03-23","2018-03-24"]
[null,null,{"$f":"IF(WEEKDAY(CalendarDay)=WeekStartValue,CONCATENATE(WEEKNUM(CalendarDay),\"주/ \",CalendarDay-DATE(YEAR(CalendarDay),1,0),\"일 \"),CONCATENATE(CalendarDay-DATE(YEAR(CalendarDay),1,0),\"일 \"))","v":"12주/ 77일 "},{"$f":"IF(WEEKDAY(CalendarDay)=WeekStartValue,CONCATENATE(WEEKNUM(CalendarDay),\"주/ \",CalendarDay-DATE(YEAR(CalendarDay),1,0),\"일 \"),CONCATENATE(CalendarDay-DATE(YEAR(CalendarDay),1,0),\"일 \"))","v":"78일 "},{"$f":"IF(WEEKDAY(CalendarDay)=WeekStartValue,CONCATENATE(WEEKNUM(CalendarDay),\"주/ \",CalendarDay-DATE(YEAR(CalendarDay),1,0),\"일 \"),CONCATENATE(CalendarDay-DATE(YEAR(CalendarDay),1,0),\"일 \"))","v":"79일 "},{"$f":"IF(WEEKDAY(CalendarDay)=WeekStartValue,CONCATENATE(WEEKNUM(CalendarDay),\"주/ \",CalendarDay-DATE(YEAR(CalendarDay),1,0),\"일 \"),CONCATENATE(CalendarDay-DATE(YEAR(CalendarDay),1,0),\"일 \"))","v":"80일 "},{"$f":"IF(WEEKDAY(CalendarDay)=WeekStartValue,CONCATENATE(WEEKNUM(CalendarDay),\"주/ \",CalendarDay-DATE(YEAR(CalendarDay),1,0),\"일 \"),CONCATENATE(CalendarDay-DATE(YEAR(CalendarDay),1,0),\"일 \"))","v":"81일 "},{"$f":"IF(WEEKDAY(CalendarDay)=WeekStartValue,CONCATENATE(WEEKNUM(CalendarDay),\"주/ \",CalendarDay-DATE(YEAR(CalendarDay),1,0),\"일 \"),CONCATENATE(CalendarDay-DATE(YEAR(CalendarDay),1,0),\"일 \"))","v":"82일 "},{"$f":"IF(WEEKDAY(CalendarDay)=WeekStartValue,CONCATENATE(WEEKNUM(CalendarDay),\"주/ \",CalendarDay-DATE(YEAR(CalendarDay),1,0),\"일 \"),CONCATENATE(CalendarDay-DATE(YEAR(CalendarDay),1,0),\"일 \"))","v":"83일 "}]
[]
[null,null,{"$f":"DaysAndWeeks+DATE(역년,3,1)-WEEKDAY(DATE(역년,3,1),(WeekStart=\"월\")+1)+29","v":"2018-03-25"},"2018-03-26","2018-03-27","2018-03-28","2018-03-29","2018-03-30","2018-03-31"]
[null,null,{"$f":"IF(WEEKDAY(CalendarDay)=WeekStartValue,CONCATENATE(WEEKNUM(CalendarDay),\"주/ \",CalendarDay-DATE(YEAR(CalendarDay),1,0),\"일 \"),CONCATENATE(CalendarDay-DATE(YEAR(CalendarDay),1,0),\"일 \"))","v":"13주/ 84일 "},{"$f":"IF(WEEKDAY(CalendarDay)=WeekStartValue,CONCATENATE(WEEKNUM(CalendarDay),\"주/ \",CalendarDay-DATE(YEAR(CalendarDay),1,0),\"일 \"),CONCATENATE(CalendarDay-DATE(YEAR(CalendarDay),1,0),\"일 \"))","v":"85일 "},{"$f":"IF(WEEKDAY(CalendarDay)=WeekStartValue,CONCATENATE(WEEKNUM(CalendarDay),\"주/ \",CalendarDay-DATE(YEAR(CalendarDay),1,0),\"일 \"),CONCATENATE(CalendarDay-DATE(YEAR(CalendarDay),1,0),\"일 \"))","v":"86일 "},{"$f":"IF(WEEKDAY(CalendarDay)=WeekStartValue,CONCATENATE(WEEKNUM(CalendarDay),\"주/ \",CalendarDay-DATE(YEAR(CalendarDay),1,0),\"일 \"),CONCATENATE(CalendarDay-DATE(YEAR(CalendarDay),1,0),\"일 \"))","v":"87일 "},{"$f":"IF(WEEKDAY(CalendarDay)=WeekStartValue,CONCATENATE(WEEKNUM(CalendarDay),\"주/ \",CalendarDay-DATE(YEAR(CalendarDay),1,0),\"일 \"),CONCATENATE(CalendarDay-DATE(YEAR(CalendarDay),1,0),\"일 \"))","v":"88일 "},{"$f":"IF(WEEKDAY(CalendarDay)=WeekStartValue,CONCATENATE(WEEKNUM(CalendarDay),\"주/ \",CalendarDay-DATE(YEAR(CalendarDay),1,0),\"일 \"),CONCATENATE(CalendarDay-DATE(YEAR(CalendarDay),1,0),\"일 \"))","v":"89일 "},{"$f":"IF(WEEKDAY(CalendarDay)=WeekStartValue,CONCATENATE(WEEKNUM(CalendarDay),\"주/ \",CalendarDay-DATE(YEAR(CalendarDay),1,0),\"일 \"),CONCATENATE(CalendarDay-DATE(YEAR(CalendarDay),1,0),\"일 \"))","v":"90일 "}]
[{"$nulls":4},"메모"]
[]
[null,null,{"$f":"DaysAndWeeks+DATE(역년,3,1)-WEEKDAY(DATE(역년,3,1),(WeekStart=\"월\")+1)+36","v":"2018-04-01"},"2018-04-02"]
[null,null,{"$f":"IF(WEEKDAY(CalendarDay)=WeekStartValue,CONCATENATE(WEEKNUM(CalendarDay),\"주/ \",CalendarDay-DATE(YEAR(CalendarDay),1,0),\"일 \"),CONCATENATE(CalendarDay-DATE(YEAR(CalendarDay),1,0),\"일 \"))","v":"14주/ 91일 "},{"$f":"IF(WEEKDAY(CalendarDay)=WeekStartValue,CONCATENATE(WEEKNUM(CalendarDay),\"주/ \",CalendarDay-DATE(YEAR(CalendarDay),1,0),\"일 \"),CONCATENATE(CalendarDay-DATE(YEAR(CalendarDay),1,0),\"일 \"))","v":"92일 "}]

{"sheet":"4월","index":3,"n_rows":20,"n_cols":9,"rows_kept":20,"merged":[[16,2,17,2],[17,4,19,8]]}
[null,"4월",{"$f":"UPPER(TEXT(WeekStart,\"ddd\"))","v":"일"},{"$f":"UPPER(TEXT(D3,\"aaa\"))","v":"월"},"화","수","목","금","토"]
[null,{"$f":"역년","v":2018}]
[null,null,{"$f":"DaysAndWeeks+DATE(역년,4,1)-WEEKDAY(DATE(역년,4,1),(WeekStart=\"월\")+1)+1","v":"2018-04-01"},"2018-04-02","2018-04-03","2018-04-04","2018-04-05","2018-04-06","2018-04-07"]
[null,null,{"$f":"IF(DAY(CalendarDay)=1,CONCATENATE(WEEKNUM(CalendarDay),\"주/ \",CalendarDay-DATE(YEAR(CalendarDay),1,0),\"일 \"),CONCATENATE(CalendarDay-DATE(YEAR(CalendarDay),1,0),\"일 \"))","v":"14주/ 91일 "},{"$f":"IF(DAY(CalendarDay)=1,CONCATENATE(WEEKNUM(CalendarDay),\"주/ \",CalendarDay-DATE(YEAR(CalendarDay),1,0),\"일 \"),CONCATENATE(CalendarDay-DATE(YEAR(CalendarDay),1,0),\"일 \"))","v":"92일 "},{"$f":"IF(DAY(CalendarDay)=1,CONCATENATE(WEEKNUM(CalendarDay),\"주/ \",CalendarDay-DATE(YEAR(CalendarDay),1,0),\"일 \"),CONCATENATE(CalendarDay-DATE(YEAR(CalendarDay),1,0),\"일 \"))","v":"93일 "},{"$f":"IF(DAY(CalendarDay)=1,CONCATENATE(WEEKNUM(CalendarDay),\"주/ \",CalendarDay-DATE(YEAR(CalendarDay),1,0),\"일 \"),CONCATENATE(CalendarDay-DATE(YEAR(CalendarDay),1,0),\"일 \"))","v":"94일 "},{"$f":"IF(DAY(CalendarDay)=1,CONCATENATE(WEEKNUM(CalendarDay),\"주/ \",CalendarDay-DATE(YEAR(CalendarDay),1,0),\"일 \"),CONCATENATE(CalendarDay-DATE(YEAR(CalendarDay),1,0),\"일 \"))","v":"95일 "},{"$f":"IF(DAY(CalendarDay)=1,CONCATENATE(WEEKNUM(CalendarDay),\"주/ \",CalendarDay-DATE(YEAR(CalendarDay),1,0),\"일 \"),CONCATENATE(CalendarDay-DATE(YEAR(CalendarDay),1,0),\"일 \"))","v":"96일 "},{"$f":"IF(DAY(CalendarDay)=1,CONCATENATE(WEEKNUM(CalendarDay),\"주/ \",CalendarDay-DATE(YEAR(CalendarDay),1,0),\"일 \"),CONCATENATE(CalendarDay-DATE(YEAR(CalendarDay),1,0),\"일 \"))","v":"97일 "}]
[]
[null,null,{"$f":"DaysAndWeeks+DATE(역년,4,1)-WEEKDAY(DATE(역년,4,1),(WeekStart=\"월\")+1)+8","v":"2018-04-08"},"2018-04-09","2018-04-10","2018-04-11","2018-04-12","2018-04-13","2018-04-14"]
[null,null,{"$f":"IF(WEEKDAY(CalendarDay)=WeekStartValue,CONCATENATE(WEEKNUM(CalendarDay),\"주/ \",CalendarDay-DATE(YEAR(CalendarDay),1,0),\"일 \"),CONCATENATE(CalendarDay-DATE(YEAR(CalendarDay),1,0),\"일 \"))","v":"15주/ 98일 "},{"$f":"IF(WEEKDAY(CalendarDay)=WeekStartValue,CONCATENATE(WEEKNUM(CalendarDay),\"주/ \",CalendarDay-DATE(YEAR(CalendarDay),1,0),\"일 \"),CONCATENATE(CalendarDay-DATE(YEAR(CalendarDay),1,0),\"일 \"))","v":"99일 "},{"$f":"IF(WEEKDAY(CalendarDay)=WeekStartValue,CONCATENATE(WEEKNUM(CalendarDay),\"주/ \",CalendarDay-DATE(YEAR(CalendarDay),1,0),\"일 \"),CONCATENATE(CalendarDay-DATE(YEAR(CalendarDay),1,0),\"일 \"))","v":"100일 "},{"$f":"IF(WEEKDAY(CalendarDay)=WeekStartValue,CONCATENATE(WEEKNUM(CalendarDay),\"주/ \",CalendarDay-DATE(YEAR(CalendarDay),1,0),\"일 \"),CONCATENATE(CalendarDay-DATE(YEAR(CalendarDay),1,0),\"일 \"))","v":"101일 "},{"$f":"IF(WEEKDAY(CalendarDay)=WeekStartValue,CONCATENATE(WEEKNUM(CalendarDay),\"주/ \",CalendarDay-DATE(YEAR(CalendarDay),1,0),\"일 \"),CONCATENATE(CalendarDay-DATE(YEAR(CalendarDay),1,0),\"일 \"))","v":"102일 "},{"$f":"IF(WEEKDAY(CalendarDay)=WeekStartValue,CONCATENATE(WEEKNUM(CalendarDay),\"주/ \",CalendarDay-DATE(YEAR(CalendarDay),1,0),\"일 \"),CONCATENATE(CalendarDay-DATE(YEAR(CalendarDay),1,0),\"일 \"))","v":"103일 "},{"$f":"IF(WEEKDAY(CalendarDay)=WeekStartValue,CONCATENATE(WEEKNUM(CalendarDay),\"주/ \",CalendarDay-DATE(YEAR(CalendarDay),1,0),\"일 \"),CONCATENATE(CalendarDay-DATE(YEAR(CalendarDay),1,0),\"일 \"))","v":"104일 "}]
[]
[null,null,{"$f":"DaysAndWeeks+DATE(역년,4,1)-WEEKDAY(DATE(역년,4,1),(WeekStart=\"월\")+1)+15","v":"2018-04-15"},"2018-04-16","2018-04-17","2018-04-18","2018-04-19","2018-04-20","2018-04-21"]
[null,null,{"$f":"IF(WEEKDAY(CalendarDay)=WeekStartValue,CONCATENATE(WEEKNUM(CalendarDay),\"주/ \",CalendarDay-DATE(YEAR(CalendarDay),1,0),\"일 \"),CONCATENATE(CalendarDay-DATE(YEAR(CalendarDay),1,0),\"일 \"))","v":"16주/ 105일 "},{"$f":"IF(WEEKDAY(CalendarDay)=WeekStartValue,CONCATENATE(WEEKNUM(CalendarDay),\"주/ \",CalendarDay-DATE(YEAR(CalendarDay),1,0),\"일 \"),CONCATENATE(CalendarDay-DATE(YEAR(CalendarDay),1,0),\"일 \"))","v":"106일 "},{"$f":"IF(WEEKDAY(CalendarDay)=WeekStartValue,CONCATENATE(WEEKNUM(CalendarDay),\"주/ \",CalendarDay-DATE(YEAR(CalendarDay),1,0),\"일 \"),CONCATENATE(CalendarDay-DATE(YEAR(CalendarDay),1,0),\"일 \"))","v":"107일 "},{"$f":"IF(WEEKDAY(CalendarDay)=WeekStartValue,CONCATENATE(WEEKNUM(CalendarDay),\"주/ \",CalendarDay-DATE(YEAR(CalendarDay),1,0),\"일 \"),CONCATENATE(CalendarDay-DATE(YEAR(CalendarDay),1,0),\"일 \"))","v":"108일 "},{"$f":"IF(WEEKDAY(CalendarDay)=WeekStartValue,CONCATENATE(WEEKNUM(CalendarDay),\"주/ \",CalendarDay-DATE(YEAR(CalendarDay),1,0),\"일 \"),CONCATENATE(CalendarDay-DATE(YEAR(CalendarDay),1,0),\"일 \"))","v":"109일 "},{"$f":"IF(WEEKDAY(CalendarDay)=WeekStartValue,CONCATENATE(WEEKNUM(CalendarDay),\"주/ \",CalendarDay-DATE(YEAR(CalendarDay),1,0),\"일 \"),CONCATENATE(CalendarDay-DATE(YEAR(CalendarDay),1,0),\"일 \"))","v":"110일 "},{"$f":"IF(WEEKDAY(CalendarDay)=WeekStartValue,CONCATENATE(WEEKNUM(CalendarDay),\"주/ \",CalendarDay-DATE(YEAR(CalendarDay),1,0),\"일 \"),CONCATENATE(CalendarDay-DATE(YEAR(CalendarDay),1,0),\"일 \"))","v":"111일 "}]
[]
[null,null,{"$f":"DaysAndWeeks+DATE(역년,4,1)-WEEKDAY(DATE(역년,4,1),(WeekStart=\"월\")+1)+22","v":"2018-04-22"},"2018-04-23","2018-04-24","2018-04-25","2018-04-26","2018-04-27","2018-04-28"]
[null,null,{"$f":"IF(WEEKDAY(CalendarDay)=WeekStartValue,CONCATENATE(WEEKNUM(CalendarDay),\"주/ \",CalendarDay-DATE(YEAR(CalendarDay),1,0),\"일 \"),CONCATENATE(CalendarDay-DATE(YEAR(CalendarDay),1,0),\"일 \"))","v":"17주/ 112일 "},{"$f":"IF(WEEKDAY(CalendarDay)=WeekStartValue,CONCATENATE(WEEKNUM(CalendarDay),\"주/ \",CalendarDay-DATE(YEAR(CalendarDay),1,0),\"일 \"),CONCATENATE(CalendarDay-DATE(YEAR(CalendarDay),1,0),\"일 \"))","v":"113일 "},{"$f":"IF(WEEKDAY(CalendarDay)=WeekStartValue,CONCATENATE(WEEKNUM(CalendarDay),\"주/ \",CalendarDay-DATE(YEAR(CalendarDay),1,0),\"일 \"),CONCATENATE(CalendarDay-DATE(YEAR(CalendarDay),1,0),\"일 \"))","v":"114일 "},{"$f":"IF(WEEKDAY(CalendarDay)=WeekStartValue,CONCATENATE(WEEKNUM(CalendarDay),\"주/ \",CalendarDay-DATE(YEAR(CalendarDay),1,0),\"일 \"),CONCATENATE(CalendarDay-DATE(YEAR(CalendarDay),1,0),\"일 \"))","v":"115일 "},{"$f":"IF(WEEKDAY(CalendarDay)=WeekStartValue,CONCATENATE(WEEKNUM(CalendarDay),\"주/ \",CalendarDay-DATE(YEAR(CalendarDay),1,0),\"일 \"),CONCATENATE(CalendarDay-DATE(YEAR(CalendarDay),1,0),\"일 \"))","v":"116일 "},{"$f":"IF(WEEKDAY(CalendarDay)=WeekStartValue,CONCATENATE(WEEKNUM(CalendarDay),\"주/ \",CalendarDay-DATE(YEAR(CalendarDay),1,0),\"일 \"),CONCATENATE(CalendarDay-DATE(YEAR(CalendarDay),1,0),\"일 \"))","v":"117일 "},{"$f":"IF(WEEKDAY(CalendarDay)=WeekStartValue,CONCATENATE(WEEKNUM(CalendarDay),\"주/ \",CalendarDay-DATE(YEAR(CalendarDay),1,0),\"일 \"),CONCATENATE(CalendarDay-DATE(YEAR(CalendarDay),1,0),\"일 \"))","v":"118일 "}]
[]
[null,null,{"$f":"DaysAndWeeks+DATE(역년,4,1)-WEEKDAY(DATE(역년,4,1),(WeekStart=\"월\")+1)+29","v":"2018-04-29"},"2018-04-30","2018-05-01","2018-05-02","2018-05-03","2018-05-04","2018-05-05"]
[null,null,{"$f":"IF(WEEKDAY(CalendarDay)=WeekStartValue,CONCATENATE(WEEKNUM(CalendarDay),\"주/ \",CalendarDay-DATE(YEAR(CalendarDay),1,0),\"일 \"),CONCATENATE(CalendarDay-DATE(YEAR(CalendarDay),1,0),\"일 \"))","v":"18주/ 119일 "},{"$f":"IF(WEEKDAY(CalendarDay)=WeekStartValue,CONCATENATE(WEEKNUM(CalendarDay),\"주/ \",CalendarDay-DATE(YEAR(CalendarDay),1,0),\"일 \"),CONCATENATE(CalendarDay-DATE(YEAR(CalendarDay),1,0),\"일 \"))","v":"120일 "},{"$f":"IF(WEEKDAY(CalendarDay)=WeekStartValue,CONCATENATE(WEEKNUM(CalendarDay),\"주/ \",CalendarDay-DATE(YEAR(CalendarDay),1,0),\"일 \"),CONCATENATE(CalendarDay-DATE(YEAR(CalendarDay),1,0),\"일 \"))","v":"121일 "},{"$f":"IF(WEEKDAY(CalendarDay)=WeekStartValue,CONCATENATE(WEEKNUM(CalendarDay),\"주/ \",CalendarDay-DATE(YEAR(CalendarDay),1,0),\"일 \"),CONCATENATE(CalendarDay-DATE(YEAR(CalendarDay),1,0),\"일 \"))","v":"122일 "},{"$f":"IF(WEEKDAY(CalendarDay)=WeekStartValue,CONCATENATE(WEEKNUM(CalendarDay),\"주/ \",CalendarDay-DATE(YEAR(CalendarDay),1,0),\"일 \"),CONCATENATE(CalendarDay-DATE(YEAR(CalendarDay),1,0),\"일 \"))","v":"123일 "},{"$f":"IF(WEEKDAY(CalendarDay)=WeekStartValue,CONCATENATE(WEEKNUM(CalendarDay),\"주/ \",CalendarDay-DATE(YEAR(CalendarDay),1,0),\"일 \"),CONCATENATE(CalendarDay-DATE(YEAR(CalendarDay),1,0),\"일 \"))","v":"124일 "},{"$f":"IF(WEEKDAY(CalendarDay)=WeekStartValue,CONCATENATE(WEEKNUM(CalendarDay),\"주/ \",CalendarDay-DATE(YEAR(CalendarDay),1,0),\"일 \"),CONCATENATE(CalendarDay-DATE(YEAR(CalendarDay),1,0),\"일 \"))","v":"125일 "}]
[{"$nulls":4},"메모"]
[]
[null,null,{"$f":"DaysAndWeeks+DATE(역년,4,1)-WEEKDAY(DATE(역년,4,1),(WeekStart=\"월\")+1)+36","v":"2018-05-06"},"2018-05-07"]
[null,null,{"$f":"IF(WEEKDAY(CalendarDay)=WeekStartValue,CONCATENATE(WEEKNUM(CalendarDay),\"주/ \",CalendarDay-DATE(YEAR(CalendarDay),1,0),\"일 \"),CONCATENATE(CalendarDay-DATE(YEAR(CalendarDay),1,0),\"일 \"))","v":"19주/ 126일 "},{"$f":"IF(WEEKDAY(CalendarDay)=WeekStartValue,CONCATENATE(WEEKNUM(CalendarDay),\"주/ \",CalendarDay-DATE(YEAR(CalendarDay),1,0),\"일 \"),CONCATENATE(CalendarDay-DATE(YEAR(CalendarDay),1,0),\"일 \"))","v":"127일 "}]

{"sheet":"5월","index":4,"n_rows":20,"n_cols":9,"rows_kept":20,"merged":[[16,2,17,2],[17,4,19,8]]}
[null,"5월",{"$f":"UPPER(TEXT(WeekStart,\"ddd\"))","v":"일"},{"$f":"UPPER(TEXT(D3,\"aaa\"))","v":"월"},"화","수","목","금","토"]
[null,{"$f":"역년","v":2018}]
[null,null,{"$f":"DaysAndWeeks+DATE(역년,5,1)-WEEKDAY(DATE(역년,5,1),(WeekStart=\"월\")+1)+1","v":"2018-04-29"},"2018-04-30","2018-05-01","2018-05-02","2018-05-03","2018-05-04","2018-05-05"]
[null,null,{"$f":"IF(DAY(CalendarDay)=1,CONCATENATE(WEEKNUM(CalendarDay),\"주/ \",CalendarDay-DATE(YEAR(CalendarDay),1,0),\"일 \"),CONCATENATE(CalendarDay-DATE(YEAR(CalendarDay),1,0),\"일 \"))","v":"119일 "},{"$f":"IF(DAY(CalendarDay)=1,CONCATENATE(WEEKNUM(CalendarDay),\"주/ \",CalendarDay-DATE(YEAR(CalendarDay),1,0),\"일 \"),CONCATENATE(CalendarDay-DATE(YEAR(CalendarDay),1,0),\"일 \"))","v":"120일 "},{"$f":"IF(DAY(CalendarDay)=1,CONCATENATE(WEEKNUM(CalendarDay),\"주/ \",CalendarDay-DATE(YEAR(CalendarDay),1,0),\"일 \"),CONCATENATE(CalendarDay-DATE(YEAR(CalendarDay),1,0),\"일 \"))","v":"18주/ 121일 "},{"$f":"IF(DAY(CalendarDay)=1,CONCATENATE(WEEKNUM(CalendarDay),\"주/ \",CalendarDay-DATE(YEAR(CalendarDay),1,0),\"일 \"),CONCATENATE(CalendarDay-DATE(YEAR(CalendarDay),1,0),\"일 \"))","v":"122일 "},{"$f":"IF(DAY(CalendarDay)=1,CONCATENATE(WEEKNUM(CalendarDay),\"주/ \",CalendarDay-DATE(YEAR(CalendarDay),1,0),\"일 \"),CONCATENATE(CalendarDay-DATE(YEAR(CalendarDay),1,0),\"일 \"))","v":"123일 "},{"$f":"IF(DAY(CalendarDay)=1,CONCATENATE(WEEKNUM(CalendarDay),\"주/ \",CalendarDay-DATE(YEAR(CalendarDay),1,0),\"일 \"),CONCATENATE(CalendarDay-DATE(YEAR(CalendarDay),1,0),\"일 \"))","v":"124일 "},{"$f":"IF(DAY(CalendarDay)=1,CONCATENATE(WEEKNUM(CalendarDay),\"주/ \",CalendarDay-DATE(YEAR(CalendarDay),1,0),\"일 \"),CONCATENATE(CalendarDay-DATE(YEAR(CalendarDay),1,0),\"일 \"))","v":"125일 "}]
[]
[null,null,{"$f":"DaysAndWeeks+DATE(역년,5,1)-WEEKDAY(DATE(역년,5,1),(WeekStart=\"월\")+1)+8","v":"2018-05-06"},"2018-05-07","2018-05-08","2018-05-09","2018-05-10","2018-05-11","2018-05-12"]
[null,null,{"$f":"IF(WEEKDAY(CalendarDay)=WeekStartValue,CONCATENATE(WEEKNUM(CalendarDay),\"주/ \",CalendarDay-DATE(YEAR(CalendarDay),1,0),\"일 \"),CONCATENATE(CalendarDay-DATE(YEAR(CalendarDay),1,0),\"일 \"))","v":"19주/ 126일 "},{"$f":"IF(WEEKDAY(CalendarDay)=WeekStartValue,CONCATENATE(WEEKNUM(CalendarDay),\"주/ \",CalendarDay-DATE(YEAR(CalendarDay),1,0),\"일 \"),CONCATENATE(CalendarDay-DATE(YEAR(CalendarDay),1,0),\"일 \"))","v":"127일 "},{"$f":"IF(WEEKDAY(CalendarDay)=WeekStartValue,CONCATENATE(WEEKNUM(CalendarDay),\"주/ \",CalendarDay-DATE(YEAR(CalendarDay),1,0),\"일 \"),CONCATENATE(CalendarDay-DATE(YEAR(CalendarDay),1,0),\"일 \"))","v":"128일 "},{"$f":"IF(WEEKDAY(CalendarDay)=WeekStartValue,CONCATENATE(WEEKNUM(CalendarDay),\"주/ \",CalendarDay-DATE(YEAR(CalendarDay),1,0),\"일 \"),CONCATENATE(CalendarDay-DATE(YEAR(CalendarDay),1,0),\"일 \"))","v":"129일 "},{"$f":"IF(WEEKDAY(CalendarDay)=WeekStartValue,CONCATENATE(WEEKNUM(CalendarDay),\"주/ \",CalendarDay-DATE(YEAR(CalendarDay),1,0),\"일 \"),CONCATENATE(CalendarDay-DATE(YEAR(CalendarDay),1,0),\"일 \"))","v":"130일 "},{"$f":"IF(WEEKDAY(CalendarDay)=WeekStartValue,CONCATENATE(WEEKNUM(CalendarDay),\"주/ \",CalendarDay-DATE(YEAR(CalendarDay),1,0),\"일 \"),CONCATENATE(CalendarDay-DATE(YEAR(CalendarDay),1,0),\"일 \"))","v":"131일 "},{"$f":"IF(WEEKDAY(CalendarDay)=WeekStartValue,CONCATENATE(WEEKNUM(CalendarDay),\"주/ \",CalendarDay-DATE(YEAR(CalendarDay),1,0),\"일 \"),CONCATENATE(CalendarDay-DATE(YEAR(CalendarDay),1,0),\"일 \"))","v":"132일 "}]
[]
[null,null,{"$f":"DaysAndWeeks+DATE(역년,5,1)-WEEKDAY(DATE(역년,5,1),(WeekStart=\"월\")+1)+15","v":"2018-05-13"},"2018-05-14","2018-05-15","2018-05-16","2018-05-17","2018-05-18","2018-05-19"]
[null,null,{"$f":"IF(WEEKDAY(CalendarDay)=WeekStartValue,CONCATENATE(WEEKNUM(CalendarDay),\"주/ \",CalendarDay-DATE(YEAR(CalendarDay),1,0),\"일 \"),CONCATENATE(CalendarDay-DATE(YEAR(CalendarDay),1,0),\"일 \"))","v":"20주/ 133일 "},{"$f":"IF(WEEKDAY(CalendarDay)=WeekStartValue,CONCATENATE(WEEKNUM(CalendarDay),\"주/ \",CalendarDay-DATE(YEAR(CalendarDay),1,0),\"일 \"),CONCATENATE(CalendarDay-DATE(YEAR(CalendarDay),1,0),\"일 \"))","v":"134일 "},{"$f":"IF(WEEKDAY(CalendarDay)=WeekStartValue,CONCATENATE(WEEKNUM(CalendarDay),\"주/ \",CalendarDay-DATE(YEAR(CalendarDay),1,0),\"일 \"),CONCATENATE(CalendarDay-DATE(YEAR(CalendarDay),1,0),\"일 \"))","v":"135일 "},{"$f":"IF(WEEKDAY(CalendarDay)=WeekStartValue,CONCATENATE(WEEKNUM(CalendarDay),\"주/ \",CalendarDay-DATE(YEAR(CalendarDay),1,0),\"일 \"),CONCATENATE(CalendarDay-DATE(YEAR(CalendarDay),1,0),\"일 \"))","v":"136일 "},{"$f":"IF(WEEKDAY(CalendarDay)=WeekStartValue,CONCATENATE(WEEKNUM(CalendarDay),\"주/ \",CalendarDay-DATE(YEAR(CalendarDay),1,0),\"일 \"),CONCATENATE(CalendarDay-DATE(YEAR(CalendarDay),1,0),\"일 \"))","v":"137일 "},{"$f":"IF(WEEKDAY(CalendarDay)=WeekStartValue,CONCATENATE(WEEKNUM(CalendarDay),\"주/ \",CalendarDay-DATE(YEAR(CalendarDay),1,0),\"일 \"),CONCATENATE(CalendarDay-DATE(YEAR(CalendarDay),1,0),\"일 \"))","v":"138일 "},{"$f":"IF(WEEKDAY(CalendarDay)=WeekStartValue,CONCATENATE(WEEKNUM(CalendarDay),\"주/ \",CalendarDay-DATE(YEAR(CalendarDay),1,0),\"일 \"),CONCATENATE(CalendarDay-DATE(YEAR(CalendarDay),1,0),\"일 \"))","v":"139일 "}]
[]
[null,null,{"$f":"DaysAndWeeks+DATE(역년,5,1)-WEEKDAY(DATE(역년,5,1),(WeekStart=\"월\")+1)+22","v":"2018-05-20"},"2018-05-21","2018-05-22","2018-05-23","2018-05-24","2018-05-25","2018-05-26"]
[null,null,{"$f":"IF(WEEKDAY(CalendarDay)=WeekStartValue,CONCATENATE(WEEKNUM(CalendarDay),\"주/ \",CalendarDay-DATE(YEAR(CalendarDay),1,0),\"일 \"),CONCATENATE(CalendarDay-DATE(YEAR(CalendarDay),1,0),\"일 \"))","v":"21주/ 140일 "},{"$f":"IF(WEEKDAY(CalendarDay)=WeekStartValue,CONCATENATE(WEEKNUM(CalendarDay),\"주/ \",CalendarDay-DATE(YEAR(CalendarDay),1,0),\"일 \"),CONCATENATE(CalendarDay-DATE(YEAR(CalendarDay),1,0),\"일 \"))","v":"141일 "},{"$f":"IF(WEEKDAY(CalendarDay)=WeekStartValue,CONCATENATE(WEEKNUM(CalendarDay),\"주/ \",CalendarDay-DATE(YEAR(CalendarDay),1,0),\"일 \"),CONCATENATE(CalendarDay-DATE(YEAR(CalendarDay),1,0),\"일 \"))","v":"142일 "},{"$f":"IF(WEEKDAY(CalendarDay)=WeekStartValue,CONCATENATE(WEEKNUM(CalendarDay),\"주/ \",CalendarDay-DATE(YEAR(CalendarDay),1,0),\"일 \"),CONCATENATE(CalendarDay-DATE(YEAR(CalendarDay),1,0),\"일 \"))","v":"143일 "},{"$f":"IF(WEEKDAY(CalendarDay)=WeekStartValue,CONCATENATE(WEEKNUM(CalendarDay),\"주/ \",CalendarDay-DATE(YEAR(CalendarDay),1,0),\"일 \"),CONCATENATE(CalendarDay-DATE(YEAR(CalendarDay),1,0),\"일 \"))","v":"144일 "},{"$f":"IF(WEEKDAY(CalendarDay)=WeekStartValue,CONCATENATE(WEEKNUM(CalendarDay),\"주/ \",CalendarDay-DATE(YEAR(CalendarDay),1,0),\"일 \"),CONCATENATE(CalendarDay-DATE(YEAR(CalendarDay),1,0),\"일 \"))","v":"145일 "},{"$f":"IF(WEEKDAY(CalendarDay)=WeekStartValue,CONCATENATE(WEEKNUM(CalendarDay),\"주/ \",CalendarDay-DATE(YEAR(CalendarDay),1,0),\"일 \"),CONCATENATE(CalendarDay-DATE(YEAR(CalendarDay),1,0),\"일 \"))","v":"146일 "}]
[]
[null,null,{"$f":"DaysAndWeeks+DATE(역년,5,1)-WEEKDAY(DATE(역년,5,1),(WeekStart=\"월\")+1)+29","v":"2018-05-27"},"2018-05-28","2018-05-29","2018-05-30","2018-05-31","2018-06-01","2018-06-02"]
[null,null,{"$f":"IF(WEEKDAY(CalendarDay)=WeekStartValue,CONCATENATE(WEEKNUM(CalendarDay),\"주/ \",CalendarDay-DATE(YEAR(CalendarDay),1,0),\"일 \"),CONCATENATE(CalendarDay-DATE(YEAR(CalendarDay),1,0),\"일 \"))","v":"22주/ 147일 "},{"$f":"IF(WEEKDAY(CalendarDay)=WeekStartValue,CONCATENATE(WEEKNUM(CalendarDay),\"주/ \",CalendarDay-DATE(YEAR(CalendarDay),1,0),\"일 \"),CONCATENATE(CalendarDay-DATE(YEAR(CalendarDay),1,0),\"일 \"))","v":"148일 "},{"$f":"IF(WEEKDAY(CalendarDay)=WeekStartValue,CONCATENATE(WEEKNUM(CalendarDay),\"주/ \",CalendarDay-DATE(YEAR(CalendarDay),1,0),\"일 \"),CONCATENATE(CalendarDay-DATE(YEAR(CalendarDay),1,0),\"일 \"))","v":"149일 "},{"$f":"IF(WEEKDAY(CalendarDay)=WeekStartValue,CONCATENATE(WEEKNUM(CalendarDay),\"주/ \",CalendarDay-DATE(YEAR(CalendarDay),1,0),\"일 \"),CONCATENATE(CalendarDay-DATE(YEAR(CalendarDay),1,0),\"일 \"))","v":"150일 "},{"$f":"IF(WEEKDAY(CalendarDay)=WeekStartValue,CONCATENATE(WEEKNUM(CalendarDay),\"주/ \",CalendarDay-DATE(YEAR(CalendarDay),1,0),\"일 \"),CONCATENATE(CalendarDay-DATE(YEAR(CalendarDay),1,0),\"일 \"))","v":"151일 "},{"$f":"IF(WEEKDAY(CalendarDay)=WeekStartValue,CONCATENATE(WEEKNUM(CalendarDay),\"주/ \",CalendarDay-DATE(YEAR(CalendarDay),1,0),\"일 \"),CONCATENATE(CalendarDay-DATE(YEAR(CalendarDay),1,0),\"일 \"))","v":"152일 "},{"$f":"IF(WEEKDAY(CalendarDay)=WeekStartValue,CONCATENATE(WEEKNUM(CalendarDay),\"주/ \",CalendarDay-DATE(YEAR(CalendarDay),1,0),\"일 \"),CONCATENATE(CalendarDay-DATE(YEAR(CalendarDay),1,0),\"일 \"))","v":"153일 "}]
[{"$nulls":4},"메모"]
[]
[null,null,{"$f":"DaysAndWeeks+DATE(역년,5,1)-WEEKDAY(DATE(역년,5,1),(WeekStart=\"월\")+1)+36","v":"2018-06-03"},"2018-06-04"]
[null,null,{"$f":"IF(WEEKDAY(CalendarDay)=WeekStartValue,CONCATENATE(WEEKNUM(CalendarDay),\"주/ \",CalendarDay-DATE(YEAR(CalendarDay),1,0),\"일 \"),CONCATENATE(CalendarDay-DATE(YEAR(CalendarDay),1,0),\"일 \"))","v":"23주/ 154일 "},{"$f":"IF(WEEKDAY(CalendarDay)=WeekStartValue,CONCATENATE(WEEKNUM(CalendarDay),\"주/ \",CalendarDay-DATE(YEAR(CalendarDay),1,0),\"일 \"),CONCATENATE(CalendarDay-DATE(YEAR(CalendarDay),1,0),\"일 \"))","v":"155일 "}]

{"sheet":"6월","index":5,"n_rows":20,"n_cols":9,"rows_kept":20,"merged":[[16,2,17,2],[17,4,19,8]]}
[null,"6월",{"$f":"UPPER(TEXT(WeekStart,\"ddd\"))","v":"일"},{"$f":"UPPER(TEXT(D3,\"aaa\"))","v":"월"},"화","수","목","금","토"]
[null,{"$f":"역년","v":2018}]
[null,null,{"$f":"DaysAndWeeks+DATE(역년,6,1)-WEEKDAY(DATE(역년,6,1),(WeekStart=\"월\")+1)+1","v":"2018-05-27"},"2018-05-28","2018-05-29","2018-05-30","2018-05-31","2018-06-01","2018-06-02"]
[null,null,{"$f":"IF(DAY(CalendarDay)=1,CONCATENATE(WEEKNUM(CalendarDay),\"주/ \",CalendarDay-DATE(YEAR(CalendarDay),1,0),\"일 \"),CONCATENATE(CalendarDay-DATE(YEAR(CalendarDay),1,0),\"일 \"))","v":"147일 "},{"$f":"IF(DAY(CalendarDay)=1,CONCATENATE(WEEKNUM(CalendarDay),\"주/ \",CalendarDay-DATE(YEAR(CalendarDay),1,0),\"일 \"),CONCATENATE(CalendarDay-DATE(YEAR(CalendarDay),1,0),\"일 \"))","v":"148일 "},{"$f":"IF(DAY(CalendarDay)=1,CONCATENATE(WEEKNUM(CalendarDay),\"주/ \",CalendarDay-DATE(YEAR(CalendarDay),1,0),\"일 \"),CONCATENATE(CalendarDay-DATE(YEAR(CalendarDay),1,0),\"일 \"))","v":"149일 "},{"$f":"IF(DAY(CalendarDay)=1,CONCATENATE(WEEKNUM(CalendarDay),\"주/ \",CalendarDay-DATE(YEAR(CalendarDay),1,0),\"일 \"),CONCATENATE(CalendarDay-DATE(YEAR(CalendarDay),1,0),\"일 \"))","v":"150일 "},{"$f":"IF(DAY(CalendarDay)=1,CONCATENATE(WEEKNUM(CalendarDay),\"주/ \",CalendarDay-DATE(YEAR(CalendarDay),1,0),\"일 \"),CONCATENATE(CalendarDay-DATE(YEAR(CalendarDay),1,0),\"일 \"))","v":"151일 "},{"$f":"IF(DAY(CalendarDay)=1,CONCATENATE(WEEKNUM(CalendarDay),\"주/ \",CalendarDay-DATE(YEAR(CalendarDay),1,0),\"일 \"),CONCATENATE(CalendarDay-DATE(YEAR(CalendarDay),1,0),\"일 \"))","v":"22주/ 152일 "},{"$f":"IF(DAY(CalendarDay)=1,CONCATENATE(WEEKNUM(CalendarDay),\"주/ \",CalendarDay-DATE(YEAR(CalendarDay),1,0),\"일 \"),CONCATENATE(CalendarDay-DATE(YEAR(CalendarDay),1,0),\"일 \"))","v":"153일 "}]
[]
[null,null,{"$f":"DaysAndWeeks+DATE(역년,6,1)-WEEKDAY(DATE(역년,6,1),(WeekStart=\"월\")+1)+8","v":"2018-06-03"},"2018-06-04","2018-06-05","2018-06-06","2018-06-07","2018-06-08","2018-06-09"]
[null,null,{"$f":"IF(WEEKDAY(CalendarDay)=WeekStartValue,CONCATENATE(WEEKNUM(CalendarDay),\"주/ \",CalendarDay-DATE(YEAR(CalendarDay),1,0),\"일 \"),CONCATENATE(CalendarDay-DATE(YEAR(CalendarDay),1,0),\"일 \"))","v":"23주/ 154일 "},{"$f":"IF(WEEKDAY(CalendarDay)=WeekStartValue,CONCATENATE(WEEKNUM(CalendarDay),\"주/ \",CalendarDay-DATE(YEAR(CalendarDay),1,0),\"일 \"),CONCATENATE(CalendarDay-DATE(YEAR(CalendarDay),1,0),\"일 \"))","v":"155일 "},{"$f":"IF(WEEKDAY(CalendarDay)=WeekStartValue,CONCATENATE(WEEKNUM(CalendarDay),\"주/ \",CalendarDay-DATE(YEAR(CalendarDay),1,0),\"일 \"),CONCATENATE(CalendarDay-DATE(YEAR(CalendarDay),1,0),\"일 \"))","v":"156일 "},{"$f":"IF(WEEKDAY(CalendarDay)=WeekStartValue,CONCATENATE(WEEKNUM(CalendarDay),\"주/ \",CalendarDay-DATE(YEAR(CalendarDay),1,0),\"일 \"),CONCATENATE(CalendarDay-DATE(YEAR(CalendarDay),1,0),\"일 \"))","v":"157일 "},{"$f":"IF(WEEKDAY(CalendarDay)=WeekStartValue,CONCATENATE(WEEKNUM(CalendarDay),\"주/ \",CalendarDay-DATE(YEAR(CalendarDay),1,0),\"일 \"),CONCATENATE(CalendarDay-DATE(YEAR(CalendarDay),1,0),\"일 \"))","v":"158일 "},{"$f":"IF(WEEKDAY(CalendarDay)=WeekStartValue,CONCATENATE(WEEKNUM(CalendarDay),\"주/ \",CalendarDay-DATE(YEAR(CalendarDay),1,0),\"일 \"),CONCATENATE(CalendarDay-DATE(YEAR(CalendarDay),1,0),\"일 \"))","v":"159일 "},{"$f":"IF(WEEKDAY(CalendarDay)=WeekStartValue,CONCATENATE(WEEKNUM(CalendarDay),\"주/ \",CalendarDay-DATE(YEAR(CalendarDay),1,0),\"일 \"),CONCATENATE(CalendarDay-DATE(YEAR(CalendarDay),1,0),\"일 \"))","v":"160일 "}]
[]
[null,null,{"$f":"DaysAndWeeks+DATE(역년,6,1)-WEEKDAY(DATE(역년,6,1),(WeekStart=\"월\")+1)+15","v":"2018-06-10"},"2018-06-11","2018-06-12","2018-06-13","2018-06-14","2018-06-15","2018-06-16"]
[null,null,{"$f":"IF(WEEKDAY(CalendarDay)=WeekStartValue,CONCATENATE(WEEKNUM(CalendarDay),\"주/ \",CalendarDay-DATE(YEAR(CalendarDay),1,0),\"일 \"),CONCATENATE(CalendarDay-DATE(YEAR(CalendarDay),1,0),\"일 \"))","v":"24주/ 161일 "},{"$f":"IF(WEEKDAY(CalendarDay)=WeekStartValue,CONCATENATE(WEEKNUM(CalendarDay),\"주/ \",CalendarDay-DATE(YEAR(CalendarDay),1,0),\"일 \"),CONCATENATE(CalendarDay-DATE(YEAR(CalendarDay),1,0),\"일 \"))","v":"162일 "},{"$f":"IF(WEEKDAY(CalendarDay)=WeekStartValue,CONCATENATE(WEEKNUM(CalendarDay),\"주/ \",CalendarDay-DATE(YEAR(CalendarDay),1,0),\"일 \"),CONCATENATE(CalendarDay-DATE(YEAR(CalendarDay),1,0),\"일 \"))","v":"163일 "},{"$f":"IF(WEEKDAY(CalendarDay)=WeekStartValue,CONCATENATE(WEEKNUM(CalendarDay),\"주/ \",CalendarDay-DATE(YEAR(CalendarDay),1,0),\"일 \"),CONCATENATE(CalendarDay-DATE(YEAR(CalendarDay),1,0),\"일 \"))","v":"164일 "},{"$f":"IF(WEEKDAY(CalendarDay)=WeekStartValue,CONCATENATE(WEEKNUM(CalendarDay),\"주/ \",CalendarDay-DATE(YEAR(CalendarDay),1,0),\"일 \"),CONCATENATE(CalendarDay-DATE(YEAR(CalendarDay),1,0),\"일 \"))","v":"165일 "},{"$f":"IF(WEEKDAY(CalendarDay)=WeekStartValue,CONCATENATE(WEEKNUM(CalendarDay),\"주/ \",CalendarDay-DATE(YEAR(CalendarDay),1,0),\"일 \"),CONCATENATE(CalendarDay-DATE(YEAR(CalendarDay),1,0),\"일 \"))","v":"166일 "},{"$f":"IF(WEEKDAY(CalendarDay)=WeekStartValue,CONCATENATE(WEEKNUM(CalendarDay),\"주/ \",CalendarDay-DATE(YEAR(CalendarDay),1,0),\"일 \"),CONCATENATE(CalendarDay-DATE(YEAR(CalendarDay),1,0),\"일 \"))","v":"167일 "}]
[]
[null,null,{"$f":"DaysAndWeeks+DATE(역년,6,1)-WEEKDAY(DATE(역년,6,1),(WeekStart=\"월\")+1)+22","v":"2018-06-17"},"2018-06-18","2018-06-19","2018-06-20","2018-06-21","2018-06-22","2018-06-23"]
[null,null,{"$f":"IF(WEEKDAY(CalendarDay)=WeekStartValue,CONCATENATE(WEEKNUM(CalendarDay),\"주/ \",CalendarDay-DATE(YEAR(CalendarDay),1,0),\"일 \"),CONCATENATE(CalendarDay-DATE(YEAR(CalendarDay),1,0),\"일 \"))","v":"25주/ 168일 "},{"$f":"IF(WEEKDAY(CalendarDay)=WeekStartValue,CONCATENATE(WEEKNUM(CalendarDay),\"주/ \",CalendarDay-DATE(YEAR(CalendarDay),1,0),\"일 \"),CONCATENATE(CalendarDay-DATE(YEAR(CalendarDay),1,0),\"일 \"))","v":"169일 "},{"$f":"IF(WEEKDAY(CalendarDay)=WeekStartValue,CONCATENATE(WEEKNUM(CalendarDay),\"주/ \",CalendarDay-DATE(YEAR(CalendarDay),1,0),\"일 \"),CONCATENATE(CalendarDay-DATE(YEAR(CalendarDay),1,0),\"일 \"))","v":"170일 "},{"$f":"IF(WEEKDAY(CalendarDay)=WeekStartValue,CONCATENATE(WEEKNUM(CalendarDay),\"주/ \",CalendarDay-DATE(YEAR(CalendarDay),1,0),\"일 \"),CONCATENATE(CalendarDay-DATE(YEAR(CalendarDay),1,0),\"일 \"))","v":"171일 "},{"$f":"IF(WEEKDAY(CalendarDay)=WeekStartValue,CONCATENATE(WEEKNUM(CalendarDay),\"주/ \",CalendarDay-DATE(YEAR(CalendarDay),1,0),\"일 \"),CONCATENATE(CalendarDay-DATE(YEAR(CalendarDay),1,0),\"일 \"))","v":"172일 "},{"$f":"IF(WEEKDAY(CalendarDay)=WeekStartValue,CONCATENATE(WEEKNUM(CalendarDay),\"주/ \",CalendarDay-DATE(YEAR(CalendarDay),1,0),\"일 \"),CONCATENATE(CalendarDay-DATE(YEAR(CalendarDay),1,0),\"일 \"))","v":"173일 "},{"$f":"IF(WEEKDAY(CalendarDay)=WeekStartValue,CONCATENATE(WEEKNUM(CalendarDay),\"주/ \",CalendarDay-DATE(YEAR(CalendarDay),1,0),\"일 \"),CONCATENATE(CalendarDay-DATE(YEAR(CalendarDay),1,0),\"일 \"))","v":"174일 "}]
[]
[null,null,{"$f":"DaysAndWeeks+DATE(역년,6,1)-WEEKDAY(DATE(역년,6,1),(WeekStart=\"월\")+1)+29","v":"2018-06-24"},"2018-06-25","2018-06-26","2018-06-27","2018-06-28","2018-06-29","2018-06-30"]
[null,null,{"$f":"IF(WEEKDAY(CalendarDay)=WeekStartValue,CONCATENATE(WEEKNUM(CalendarDay),\"주/ \",CalendarDay-DATE(YEAR(CalendarDay),1,0),\"일 \"),CONCATENATE(CalendarDay-DATE(YEAR(CalendarDay),1,0),\"일 \"))","v":"26주/ 175일 "},{"$f":"IF(WEEKDAY(CalendarDay)=WeekStartValue,CONCATENATE(WEEKNUM(CalendarDay),\"주/ \",CalendarDay-DATE(YEAR(CalendarDay),1,0),\"일 \"),CONCATENATE(CalendarDay-DATE(YEAR(CalendarDay),1,0),\"일 \"))","v":"176일 "},{"$f":"IF(WEEKDAY(CalendarDay)=WeekStartValue,CONCATENATE(WEEKNUM(CalendarDay),\"주/ \",CalendarDay-DATE(YEAR(CalendarDay),1,0),\"일 \"),CONCATENATE(CalendarDay-DATE(YEAR(CalendarDay),1,0),\"일 \"))","v":"177일 "},{"$f":"IF(WEEKDAY(CalendarDay)=WeekStartValue,CONCATENATE(WEEKNUM(CalendarDay),\"주/ \",CalendarDay-DATE(YEAR(CalendarDay),1,0),\"일 \"),CONCATENATE(CalendarDay-DATE(YEAR(CalendarDay),1,0),\"일 \"))","v":"178일 "},{"$f":"IF(WEEKDAY(CalendarDay)=WeekStartValue,CONCATENATE(WEEKNUM(CalendarDay),\"주/ \",CalendarDay-DATE(YEAR(CalendarDay),1,0),\"일 \"),CONCATENATE(CalendarDay-DATE(YEAR(CalendarDay),1,0),\"일 \"))","v":"179일 "},{"$f":"IF(WEEKDAY(CalendarDay)=WeekStartValue,CONCATENATE(WEEKNUM(CalendarDay),\"주/ \",CalendarDay-DATE(YEAR(CalendarDay),1,0),\"일 \"),CONCATENATE(CalendarDay-DATE(YEAR(CalendarDay),1,0),\"일 \"))","v":"180일 "},{"$f":"IF(WEEKDAY(CalendarDay)=WeekStartValue,CONCATENATE(WEEKNUM(CalendarDay),\"주/ \",CalendarDay-DATE(YEAR(CalendarDay),1,0),\"일 \"),CONCATENATE(CalendarDay-DATE(YEAR(CalendarDay),1,0),\"일 \"))","v":"181일 "}]
[{"$nulls":4},"메모"]
[]
[null,null,{"$f":"DaysAndWeeks+DATE(역년,6,1)-WEEKDAY(DATE(역년,6,1),(WeekStart=\"월\")+1)+36","v":"2018-07-01"},"2018-07-02"]
[null,null,{"$f":"IF(WEEKDAY(CalendarDay)=WeekStartValue,CONCATENATE(WEEKNUM(CalendarDay),\"주/ \",CalendarDay-DATE(YEAR(CalendarDay),1,0),\"일 \"),CONCATENATE(CalendarDay-DATE(YEAR(CalendarDay),1,0),\"일 \"))","v":"27주/ 182일 "},{"$f":"IF(WEEKDAY(CalendarDay)=WeekStartValue,CONCATENATE(WEEKNUM(CalendarDay),\"주/ \",CalendarDay-DATE(YEAR(CalendarDay),1,0),\"일 \"),CONCATENATE(CalendarDay-DATE(YEAR(CalendarDay),1,0),\"일 \"))","v":"183일 "}]

{"sheet":"7월","index":6,"n_rows":20,"n_cols":9,"rows_kept":20,"merged":[[16,2,17,2],[17,4,19,8]]}
[null,"7월",{"$f":"UPPER(TEXT(WeekStart,\"ddd\"))","v":"일"},{"$f":"UPPER(TEXT(D3,\"aaa\"))","v":"월"},"화","수","목","금","토"]
[null,{"$f":"역년","v":2018}]
[null,null,{"$f":"DaysAndWeeks+DATE(역년,7,1)-WEEKDAY(DATE(역년,7,1),(WeekStart=\"월\")+1)+1","v":"2018-07-01"},"2018-07-02","2018-07-03","2018-07-04","2018-07-05","2018-07-06","2018-07-07"]
[null,null,{"$f":"IF(DAY(CalendarDay)=1,CONCATENATE(WEEKNUM(CalendarDay),\"주/ \",CalendarDay-DATE(YEAR(CalendarDay),1,0),\"일 \"),CONCATENATE(CalendarDay-DATE(YEAR(CalendarDay),1,0),\"일 \"))","v":"27주/ 182일 "},{"$f":"IF(DAY(CalendarDay)=1,CONCATENATE(WEEKNUM(CalendarDay),\"주/ \",CalendarDay-DATE(YEAR(CalendarDay),1,0),\"일 \"),CONCATENATE(CalendarDay-DATE(YEAR(CalendarDay),1,0),\"일 \"))","v":"183일 "},{"$f":"IF(DAY(CalendarDay)=1,CONCATENATE(WEEKNUM(CalendarDay),\"주/ \",CalendarDay-DATE(YEAR(CalendarDay),1,0),\"일 \"),CONCATENATE(CalendarDay-DATE(YEAR(CalendarDay),1,0),\"일 \"))","v":"184일 "},{"$f":"IF(DAY(CalendarDay)=1,CONCATENATE(WEEKNUM(CalendarDay),\"주/ \",CalendarDay-DATE(YEAR(CalendarDay),1,0),\"일 \"),CONCATENATE(CalendarDay-DATE(YEAR(CalendarDay),1,0),\"일 \"))","v":"185일 "},{"$f":"IF(DAY(CalendarDay)=1,CONCATENATE(WEEKNUM(CalendarDay),\"주/ \",CalendarDay-DATE(YEAR(CalendarDay),1,0),\"일 \"),CONCATENATE(CalendarDay-DATE(YEAR(CalendarDay),1,0),\"일 \"))","v":"186일 "},{"$f":"IF(DAY(CalendarDay)=1,CONCATENATE(WEEKNUM(CalendarDay),\"주/ \",CalendarDay-DATE(YEAR(CalendarDay),1,0),\"일 \"),CONCATENATE(CalendarDay-DATE(YEAR(CalendarDay),1,0),\"일 \"))","v":"187일 "},{"$f":"IF(DAY(CalendarDay)=1,CONCATENATE(WEEKNUM(CalendarDay),\"주/ \",CalendarDay-DATE(YEAR(CalendarDay),1,0),\"일 \"),CONCATENATE(CalendarDay-DATE(YEAR(CalendarDay),1,0),\"일 \"))","v":"188일 "}]
[]
[null,null,{"$f":"DaysAndWeeks+DATE(역년,7,1)-WEEKDAY(DATE(역년,7,1),(WeekStart=\"월\")+1)+8","v":"2018-07-08"},"2018-07-09","2018-07-10","2018-07-11","2018-07-12","2018-07-13","2018-07-14"]
[null,null,{"$f":"IF(WEEKDAY(CalendarDay)=WeekStartValue,CONCATENATE(WEEKNUM(CalendarDay),\"주/ \",CalendarDay-DATE(YEAR(CalendarDay),1,0),\"일 \"),CONCATENATE(CalendarDay-DATE(YEAR(CalendarDay),1,0),\"일 \"))","v":"28주/ 189일 "},{"$f":"IF(WEEKDAY(CalendarDay)=WeekStartValue,CONCATENATE(WEEKNUM(CalendarDay),\"주/ \",CalendarDay-DATE(YEAR(CalendarDay),1,0),\"일 \"),CONCATENATE(CalendarDay-DATE(YEAR(CalendarDay),1,0),\"일 \"))","v":"190일 "},{"$f":"IF(WEEKDAY(CalendarDay)=WeekStartValue,CONCATENATE(WEEKNUM(CalendarDay),\"주/ \",CalendarDay-DATE(YEAR(CalendarDay),1,0),\"일 \"),CONCATENATE(CalendarDay-DATE(YEAR(CalendarDay),1,0),\"일 \"))","v":"191일 "},{"$f":"IF(WEEKDAY(CalendarDay)=WeekStartValue,CONCATENATE(WEEKNUM(CalendarDay),\"주/ \",CalendarDay-DATE(YEAR(CalendarDay),1,0),\"일 \"),CONCATENATE(CalendarDay-DATE(YEAR(CalendarDay),1,0),\"일 \"))","v":"192일 "},{"$f":"IF(WEEKDAY(CalendarDay)=WeekStartValue,CONCATENATE(WEEKNUM(CalendarDay),\"주/ \",CalendarDay-DATE(YEAR(CalendarDay),1,0),\"일 \"),CONCATENATE(CalendarDay-DATE(YEAR(CalendarDay),1,0),\"일 \"))","v":"193일 "},{"$f":"IF(WEEKDAY(CalendarDay)=WeekStartValue,CONCATENATE(WEEKNUM(CalendarDay),\"주/ \",CalendarDay-DATE(YEAR(CalendarDay),1,0),\"일 \"),CONCATENATE(CalendarDay-DATE(YEAR(CalendarDay),1,0),\"일 \"))","v":"194일 "},{"$f":"IF(WEEKDAY(CalendarDay)=WeekStartValue,CONCATENATE(WEEKNUM(CalendarDay),\"주/ \",CalendarDay-DATE(YEAR(CalendarDay),1,0),\"일 \"),CONCATENATE(CalendarDay-DATE(YEAR(CalendarDay),1,0),\"일 \"))","v":"195일 "}]
[]
[null,null,{"$f":"DaysAndWeeks+DATE(역년,7,1)-WEEKDAY(DATE(역년,7,1),(WeekStart=\"월\")+1)+15","v":"2018-07-15"},"2018-07-16","2018-07-17","2018-07-18","2018-07-19","2018-07-20","2018-07-21"]
[null,null,{"$f":"IF(WEEKDAY(CalendarDay)=WeekStartValue,CONCATENATE(WEEKNUM(CalendarDay),\"주/ \",CalendarDay-DATE(YEAR(CalendarDay),1,0),\"일 \"),CONCATENATE(CalendarDay-DATE(YEAR(CalendarDay),1,0),\"일 \"))","v":"29주/ 196일 "},{"$f":"IF(WEEKDAY(CalendarDay)=WeekStartValue,CONCATENATE(WEEKNUM(CalendarDay),\"주/ \",CalendarDay-DATE(YEAR(CalendarDay),1,0),\"일 \"),CONCATENATE(CalendarDay-DATE(YEAR(CalendarDay),1,0),\"일 \"))","v":"197일 "},{"$f":"IF(WEEKDAY(CalendarDay)=WeekStartValue,CONCATENATE(WEEKNUM(CalendarDay),\"주/ \",CalendarDay-DATE(YEAR(CalendarDay),1,0),\"일 \"),CONCATENATE(CalendarDay-DATE(YEAR(CalendarDay),1,0),\"일 \"))","v":"198일 "},{"$f":"IF(WEEKDAY(CalendarDay)=WeekStartValue,CONCATENATE(WEEKNUM(CalendarDay),\"주/ \",CalendarDay-DATE(YEAR(CalendarDay),1,0),\"일 \"),CONCATENATE(CalendarDay-DATE(YEAR(CalendarDay),1,0),\"일 \"))","v":"199일 "},{"$f":"IF(WEEKDAY(CalendarDay)=WeekStartValue,CONCATENATE(WEEKNUM(CalendarDay),\"주/ \",CalendarDay-DATE(YEAR(CalendarDay),1,0),\"일 \"),CONCATENATE(CalendarDay-DATE(YEAR(CalendarDay),1,0),\"일 \"))","v":"200일 "},{"$f":"IF(WEEKDAY(CalendarDay)=WeekStartValue,CONCATENATE(WEEKNUM(CalendarDay),\"주/ \",CalendarDay-DATE(YEAR(CalendarDay),1,0),\"일 \"),CONCATENATE(CalendarDay-DATE(YEAR(CalendarDay),1,0),\"일 \"))","v":"201일 "},{"$f":"IF(WEEKDAY(CalendarDay)=WeekStartValue,CONCATENATE(WEEKNUM(CalendarDay),\"주/ \",CalendarDay-DATE(YEAR(CalendarDay),1,0),\"일 \"),CONCATENATE(CalendarDay-DATE(YEAR(CalendarDay),1,0),\"일 \"))","v":"202일 "}]
[]
[null,null,{"$f":"DaysAndWeeks+DATE(역년,7,1)-WEEKDAY(DATE(역년,7,1),(WeekStart=\"월\")+1)+22","v":"2018-07-22"},"2018-07-23","2018-07-24","2018-07-25","2018-07-26","2018-07-27","2018-07-28"]
[null,null,{"$f":"IF(WEEKDAY(CalendarDay)=WeekStartValue,CONCATENATE(WEEKNUM(CalendarDay),\"주/ \",CalendarDay-DATE(YEAR(CalendarDay),1,0),\"일 \"),CONCATENATE(CalendarDay-DATE(YEAR(CalendarDay),1,0),\"일 \"))","v":"30주/ 203일 "},{"$f":"IF(WEEKDAY(CalendarDay)=WeekStartValue,CONCATENATE(WEEKNUM(CalendarDay),\"주/ \",CalendarDay-DATE(YEAR(CalendarDay),1,0),\"일 \"),CONCATENATE(CalendarDay-DATE(YEAR(CalendarDay),1,0),\"일 \"))","v":"204일 "},{"$f":"IF(WEEKDAY(CalendarDay)=WeekStartValue,CONCATENATE(WEEKNUM(CalendarDay),\"주/ \",CalendarDay-DATE(YEAR(CalendarDay),1,0),\"일 \"),CONCATENATE(CalendarDay-DATE(YEAR(CalendarDay),1,0),\"일 \"))","v":"205일 "},{"$f":"IF(WEEKDAY(CalendarDay)=WeekStartValue,CONCATENATE(WEEKNUM(CalendarDay),\"주/ \",CalendarDay-DATE(YEAR(CalendarDay),1,0),\"일 \"),CONCATENATE(CalendarDay-DATE(YEAR(CalendarDay),1,0),\"일 \"))","v":"206일 "},{"$f":"IF(WEEKDAY(CalendarDay)=WeekStartValue,CONCATENATE(WEEKNUM(CalendarDay),\"주/ \",CalendarDay-DATE(YEAR(CalendarDay),1,0),\"일 \"),CONCATENATE(CalendarDay-DATE(YEAR(CalendarDay),1,0),\"일 \"))","v":"207일 "},{"$f":"IF(WEEKDAY(CalendarDay)=WeekStartValue,CONCATENATE(WEEKNUM(CalendarDay),\"주/ \",CalendarDay-DATE(YEAR(CalendarDay),1,0),\"일 \"),CONCATENATE(CalendarDay-DATE(YEAR(CalendarDay),1,0),\"일 \"))","v":"208일 "},{"$f":"IF(WEEKDAY(CalendarDay)=WeekStartValue,CONCATENATE(WEEKNUM(CalendarDay),\"주/ \",CalendarDay-DATE(YEAR(CalendarDay),1,0),\"일 \"),CONCATENATE(CalendarDay-DATE(YEAR(CalendarDay),1,0),\"일 \"))","v":"209일 "}]
[]
[null,null,{"$f":"DaysAndWeeks+DATE(역년,7,1)-WEEKDAY(DATE(역년,7,1),(WeekStart=\"월\")+1)+29","v":"2018-07-29"},"2018-07-30","2018-07-31","2018-08-01","2018-08-02","2018-08-03","2018-08-04"]
[null,null,{"$f":"IF(WEEKDAY(CalendarDay)=WeekStartValue,CONCATENATE(WEEKNUM(CalendarDay),\"주/ \",CalendarDay-DATE(YEAR(CalendarDay),1,0),\"일 \"),CONCATENATE(CalendarDay-DATE(YEAR(CalendarDay),1,0),\"일 \"))","v":"31주/ 210일 "},{"$f":"IF(WEEKDAY(CalendarDay)=WeekStartValue,CONCATENATE(WEEKNUM(CalendarDay),\"주/ \",CalendarDay-DATE(YEAR(CalendarDay),1,0),\"일 \"),CONCATENATE(CalendarDay-DATE(YEAR(CalendarDay),1,0),\"일 \"))","v":"211일 "},{"$f":"IF(WEEKDAY(CalendarDay)=WeekStartValue,CONCATENATE(WEEKNUM(CalendarDay),\"주/ \",CalendarDay-DATE(YEAR(CalendarDay),1,0),\"일 \"),CONCATENATE(CalendarDay-DATE(YEAR(CalendarDay),1,0),\"일 \"))","v":"212일 "},{"$f":"IF(WEEKDAY(CalendarDay)=WeekStartValue,CONCATENATE(WEEKNUM(CalendarDay),\"주/ \",CalendarDay-DATE(YEAR(CalendarDay),1,0),\"일 \"),CONCATENATE(CalendarDay-DATE(YEAR(CalendarDay),1,0),\"일 \"))","v":"213일 "},{"$f":"IF(WEEKDAY(CalendarDay)=WeekStartValue,CONCATENATE(WEEKNUM(CalendarDay),\"주/ \",CalendarDay-DATE(YEAR(CalendarDay),1,0),\"일 \"),CONCATENATE(CalendarDay-DATE(YEAR(CalendarDay),1,0),\"일 \"))","v":"214일 "},{"$f":"IF(WEEKDAY(CalendarDay)=WeekStartValue,CONCATENATE(WEEKNUM(CalendarDay),\"주/ \",CalendarDay-DATE(YEAR(CalendarDay),1,0),\"일 \"),CONCATENATE(CalendarDay-DATE(YEAR(CalendarDay),1,0),\"일 \"))","v":"215일 "},{"$f":"IF(WEEKDAY(CalendarDay)=WeekStartValue,CONCATENATE(WEEKNUM(CalendarDay),\"주/ \",CalendarDay-DATE(YEAR(CalendarDay),1,0),\"일 \"),CONCATENATE(CalendarDay-DATE(YEAR(CalendarDay),1,0),\"일 \"))","v":"216일 "}]
[{"$nulls":4},"메모"]
[]
[null,null,{"$f":"DaysAndWeeks+DATE(역년,7,1)-WEEKDAY(DATE(역년,7,1),(WeekStart=\"월\")+1)+36","v":"2018-08-05"},"2018-08-06"]
[null,null,{"$f":"IF(WEEKDAY(CalendarDay)=WeekStartValue,CONCATENATE(WEEKNUM(CalendarDay),\"주/ \",CalendarDay-DATE(YEAR(CalendarDay),1,0),\"일 \"),CONCATENATE(CalendarDay-DATE(YEAR(CalendarDay),1,0),\"일 \"))","v":"32주/ 217일 "},{"$f":"IF(WEEKDAY(CalendarDay)=WeekStartValue,CONCATENATE(WEEKNUM(CalendarDay),\"주/ \",CalendarDay-DATE(YEAR(CalendarDay),1,0),\"일 \"),CONCATENATE(CalendarDay-DATE(YEAR(CalendarDay),1,0),\"일 \"))","v":"218일 "}]

{"sheet":"8월","index":7,"n_rows":20,"n_cols":9,"rows_kept":20,"merged":[[16,2,17,2],[17,4,19,8]]}
[null,"8월",{"$f":"UPPER(TEXT(WeekStart,\"ddd\"))","v":"일"},{"$f":"UPPER(TEXT(D3,\"aaa\"))","v":"월"},"화","수","목","금","토"]
[null,{"$f":"역년","v":2018}]
[null,null,{"$f":"DaysAndWeeks+DATE(역년,8,1)-WEEKDAY(DATE(역년,8,1),(WeekStart=\"월\")+1)+1","v":"2018-07-29"},"2018-07-30","2018-07-31","2018-08-01","2018-08-02","2018-08-03","2018-08-04"]
[null,null,{"$f":"IF(DAY(CalendarDay)=1,CONCATENATE(WEEKNUM(CalendarDay),\"주/ \",CalendarDay-DATE(YEAR(CalendarDay),1,0),\"일 \"),CONCATENATE(CalendarDay-DATE(YEAR(CalendarDay),1,0),\"일 \"))","v":"210일 "},{"$f":"IF(DAY(CalendarDay)=1,CONCATENATE(WEEKNUM(CalendarDay),\"주/ \",CalendarDay-DATE(YEAR(CalendarDay),1,0),\"일 \"),CONCATENATE(CalendarDay-DATE(YEAR(CalendarDay),1,0),\"일 \"))","v":"211일 "},{"$f":"IF(DAY(CalendarDay)=1,CONCATENATE(WEEKNUM(CalendarDay),\"주/ \",CalendarDay-DATE(YEAR(CalendarDay),1,0),\"일 \"),CONCATENATE(CalendarDay-DATE(YEAR(CalendarDay),1,0),\"일 \"))","v":"212일 "},{"$f":"IF(DAY(CalendarDay)=1,CONCATENATE(WEEKNUM(CalendarDay),\"주/ \",CalendarDay-DATE(YEAR(CalendarDay),1,0),\"일 \"),CONCATENATE(CalendarDay-DATE(YEAR(CalendarDay),1,0),\"일 \"))","v":"31주/ 213일 "},{"$f":"IF(DAY(CalendarDay)=1,CONCATENATE(WEEKNUM(CalendarDay),\"주/ \",CalendarDay-DATE(YEAR(CalendarDay),1,0),\"일 \"),CONCATENATE(CalendarDay-DATE(YEAR(CalendarDay),1,0),\"일 \"))","v":"214일 "},{"$f":"IF(DAY(CalendarDay)=1,CONCATENATE(WEEKNUM(CalendarDay),\"주/ \",CalendarDay-DATE(YEAR(CalendarDay),1,0),\"일 \"),CONCATENATE(CalendarDay-DATE(YEAR(CalendarDay),1,0),\"일 \"))","v":"215일 "},{"$f":"IF(DAY(CalendarDay)=1,CONCATENATE(WEEKNUM(CalendarDay),\"주/ \",CalendarDay-DATE(YEAR(CalendarDay),1,0),\"일 \"),CONCATENATE(CalendarDay-DATE(YEAR(CalendarDay),1,0),\"일 \"))","v":"216일 "}]
[]
[null,null,{"$f":"DaysAndWeeks+DATE(역년,8,1)-WEEKDAY(DATE(역년,8,1),(WeekStart=\"월\")+1)+8","v":"2018-08-05"},"2018-08-06","2018-08-07","2018-08-08","2018-08-09","2018-08-10","2018-08-11"]
[null,null,{"$f":"IF(WEEKDAY(CalendarDay)=WeekStartValue,CONCATENATE(WEEKNUM(CalendarDay),\"주/ \",CalendarDay-DATE(YEAR(CalendarDay),1,0),\"일 \"),CONCATENATE(CalendarDay-DATE(YEAR(CalendarDay),1,0),\"일 \"))","v":"32주/ 217일 "},{"$f":"IF(WEEKDAY(CalendarDay)=WeekStartValue,CONCATENATE(WEEKNUM(CalendarDay),\"주/ \",CalendarDay-DATE(YEAR(CalendarDay),1,0),\"일 \"),CONCATENATE(CalendarDay-DATE(YEAR(CalendarDay),1,0),\"일 \"))","v":"218일 "},{"$f":"IF(WEEKDAY(CalendarDay)=WeekStartValue,CONCATENATE(WEEKNUM(CalendarDay),\"주/ \",CalendarDay-DATE(YEAR(CalendarDay),1,0),\"일 \"),CONCATENATE(CalendarDay-DATE(YEAR(CalendarDay),1,0),\"일 \"))","v":"219일 "},{"$f":"IF(WEEKDAY(CalendarDay)=WeekStartValue,CONCATENATE(WEEKNUM(CalendarDay),\"주/ \",CalendarDay-DATE(YEAR(CalendarDay),1,0),\"일 \"),CONCATENATE(CalendarDay-DATE(YEAR(CalendarDay),1,0),\"일 \"))","v":"220일 "},{"$f":"IF(WEEKDAY(CalendarDay)=WeekStartValue,CONCATENATE(WEEKNUM(CalendarDay),\"주/ \",CalendarDay-DATE(YEAR(CalendarDay),1,0),\"일 \"),CONCATENATE(CalendarDay-DATE(YEAR(CalendarDay),1,0),\"일 \"))","v":"221일 "},{"$f":"IF(WEEKDAY(CalendarDay)=WeekStartValue,CONCATENATE(WEEKNUM(CalendarDay),\"주/ \",CalendarDay-DATE(YEAR(CalendarDay),1,0),\"일 \"),CONCATENATE(CalendarDay-DATE(YEAR(CalendarDay),1,0),\"일 \"))","v":"222일 "},{"$f":"IF(WEEKDAY(CalendarDay)=WeekStartValue,CONCATENATE(WEEKNUM(CalendarDay),\"주/ \",CalendarDay-DATE(YEAR(CalendarDay),1,0),\"일 \"),CONCATENATE(CalendarDay-DATE(YEAR(CalendarDay),1,0),\"일 \"))","v":"223일 "}]
[]
[null,null,{"$f":"DaysAndWeeks+DATE(역년,8,1)-WEEKDAY(DATE(역년,8,1),(WeekStart=\"월\")+1)+15","v":"2018-08-12"},"2018-08-13","2018-08-14","2018-08-15","2018-08-16","2018-08-17","2018-08-18"]
[null,null,{"$f":"IF(WEEKDAY(CalendarDay)=WeekStartValue,CONCATENATE(WEEKNUM(CalendarDay),\"주/ \",CalendarDay-DATE(YEAR(CalendarDay),1,0),\"일 \"),CONCATENATE(CalendarDay-DATE(YEAR(CalendarDay),1,0),\"일 \"))","v":"33주/ 224일 "},{"$f":"IF(WEEKDAY(CalendarDay)=WeekStartValue,CONCATENATE(WEEKNUM(CalendarDay),\"주/ \",CalendarDay-DATE(YEAR(CalendarDay),1,0),\"일 \"),CONCATENATE(CalendarDay-DATE(YEAR(CalendarDay),1,0),\"일 \"))","v":"225일 "},{"$f":"IF(WEEKDAY(CalendarDay)=WeekStartValue,CONCATENATE(WEEKNUM(CalendarDay),\"주/ \",CalendarDay-DATE(YEAR(CalendarDay),1,0),\"일 \"),CONCATENATE(CalendarDay-DATE(YEAR(CalendarDay),1,0),\"일 \"))","v":"226일 "},{"$f":"IF(WEEKDAY(CalendarDay)=WeekStartValue,CONCATENATE(WEEKNUM(CalendarDay),\"주/ \",CalendarDay-DATE(YEAR(CalendarDay),1,0),\"일 \"),CONCATENATE(CalendarDay-DATE(YEAR(CalendarDay),1,0),\"일 \"))","v":"227일 "},{"$f":"IF(WEEKDAY(CalendarDay)=WeekStartValue,CONCATENATE(WEEKNUM(CalendarDay),\"주/ \",CalendarDay-DATE(YEAR(CalendarDay),1,0),\"일 \"),CONCATENATE(CalendarDay-DATE(YEAR(CalendarDay),1,0),\"일 \"))","v":"228일 "},{"$f":"IF(WEEKDAY(CalendarDay)=WeekStartValue,CONCATENATE(WEEKNUM(CalendarDay),\"주/ \",CalendarDay-DATE(YEAR(CalendarDay),1,0),\"일 \"),CONCATENATE(CalendarDay-DATE(YEAR(CalendarDay),1,0),\"일 \"))","v":"229일 "},{"$f":"IF(WEEKDAY(CalendarDay)=WeekStartValue,CONCATENATE(WEEKNUM(CalendarDay),\"주/ \",CalendarDay-DATE(YEAR(CalendarDay),1,0),\"일 \"),CONCATENATE(CalendarDay-DATE(YEAR(CalendarDay),1,0),\"일 \"))","v":"230일 "}]
[]
[null,null,{"$f":"DaysAndWeeks+DATE(역년,8,1)-WEEKDAY(DATE(역년,8,1),(WeekStart=\"월\")+1)+22","v":"2018-08-19"},"2018-08-20","2018-08-21","2018-08-22","2018-08-23","2018-08-24","2018-08-25"]
[null,null,{"$f":"IF(WEEKDAY(CalendarDay)=WeekStartValue,CONCATENATE(WEEKNUM(CalendarDay),\"주/ \",CalendarDay-DATE(YEAR(CalendarDay),1,0),\"일 \"),CONCATENATE(CalendarDay-DATE(YEAR(CalendarDay),1,0),\"일 \"))","v":"34주/ 231일 "},{"$f":"IF(WEEKDAY(CalendarDay)=WeekStartValue,CONCATENATE(WEEKNUM(CalendarDay),\"주/ \",CalendarDay-DATE(YEAR(CalendarDay),1,0),\"일 \"),CONCATENATE(CalendarDay-DATE(YEAR(CalendarDay),1,0),\"일 \"))","v":"232일 "},{"$f":"IF(WEEKDAY(CalendarDay)=WeekStartValue,CONCATENATE(WEEKNUM(CalendarDay),\"주/ \",CalendarDay-DATE(YEAR(CalendarDay),1,0),\"일 \"),CONCATENATE(CalendarDay-DATE(YEAR(CalendarDay),1,0),\"일 \"))","v":"233일 "},{"$f":"IF(WEEKDAY(CalendarDay)=WeekStartValue,CONCATENATE(WEEKNUM(CalendarDay),\"주/ \",CalendarDay-DATE(YEAR(CalendarDay),1,0),\"일 \"),CONCATENATE(CalendarDay-DATE(YEAR(CalendarDay),1,0),\"일 \"))","v":"234일 "},{"$f":"IF(WEEKDAY(CalendarDay)=WeekStartValue,CONCATENATE(WEEKNUM(CalendarDay),\"주/ \",CalendarDay-DATE(YEAR(CalendarDay),1,0),\"일 \"),CONCATENATE(CalendarDay-DATE(YEAR(CalendarDay),1,0),\"일 \"))","v":"235일 "},{"$f":"IF(WEEKDAY(CalendarDay)=WeekStartValue,CONCATENATE(WEEKNUM(CalendarDay),\"주/ \",CalendarDay-DATE(YEAR(CalendarDay),1,0),\"일 \"),CONCATENATE(CalendarDay-DATE(YEAR(CalendarDay),1,0),\"일 \"))","v":"236일 "},{"$f":"IF(WEEKDAY(CalendarDay)=WeekStartValue,CONCATENATE(WEEKNUM(CalendarDay),\"주/ \",CalendarDay-DATE(YEAR(CalendarDay),1,0),\"일 \"),CONCATENATE(CalendarDay-DATE(YEAR(CalendarDay),1,0),\"일 \"))","v":"237일 "}]
[]
[null,null,{"$f":"DaysAndWeeks+DATE(역년,8,1)-WEEKDAY(DATE(역년,8,1),(WeekStart=\"월\")+1)+29","v":"2018-08-26"},"2018-08-27","2018-08-28","2018-08-29","2018-08-30","2018-08-31","2018-09-01"]
[null,null,{"$f":"IF(WEEKDAY(CalendarDay)=WeekStartValue,CONCATENATE(WEEKNUM(CalendarDay),\"주/ \",CalendarDay-DATE(YEAR(CalendarDay),1,0),\"일 \"),CONCATENATE(CalendarDay-DATE(YEAR(CalendarDay),1,0),\"일 \"))","v":"35주/ 238일 "},{"$f":"IF(WEEKDAY(CalendarDay)=WeekStartValue,CONCATENATE(WEEKNUM(CalendarDay),\"주/ \",CalendarDay-DATE(YEAR(CalendarDay),1,0),\"일 \"),CONCATENATE(CalendarDay-DATE(YEAR(CalendarDay),1,0),\"일 \"))","v":"239일 "},{"$f":"IF(WEEKDAY(CalendarDay)=WeekStartValue,CONCATENATE(WEEKNUM(CalendarDay),\"주/ \",CalendarDay-DATE(YEAR(CalendarDay),1,0),\"일 \"),CONCATENATE(CalendarDay-DATE(YEAR(CalendarDay),1,0),\"일 \"))","v":"240일 "},{"$f":"IF(WEEKDAY(CalendarDay)=WeekStartValue,CONCATENATE(WEEKNUM(CalendarDay),\"주/ \",CalendarDay-DATE(YEAR(CalendarDay),1,0),\"일 \"),CONCATENATE(CalendarDay-DATE(YEAR(CalendarDay),1,0),\"일 \"))","v":"241일 "},{"$f":"IF(WEEKDAY(CalendarDay)=WeekStartValue,CONCATENATE(WEEKNUM(CalendarDay),\"주/ \",CalendarDay-DATE(YEAR(CalendarDay),1,0),\"일 \"),CONCATENATE(CalendarDay-DATE(YEAR(CalendarDay),1,0),\"일 \"))","v":"242일 "},{"$f":"IF(WEEKDAY(CalendarDay)=WeekStartValue,CONCATENATE(WEEKNUM(CalendarDay),\"주/ \",CalendarDay-DATE(YEAR(CalendarDay),1,0),\"일 \"),CONCATENATE(CalendarDay-DATE(YEAR(CalendarDay),1,0),\"일 \"))","v":"243일 "},{"$f":"IF(WEEKDAY(CalendarDay)=WeekStartValue,CONCATENATE(WEEKNUM(CalendarDay),\"주/ \",CalendarDay-DATE(YEAR(CalendarDay),1,0),\"일 \"),CONCATENATE(CalendarDay-DATE(YEAR(CalendarDay),1,0),\"일 \"))","v":"244일 "}]
[{"$nulls":4},"메모"]
[]
[null,null,{"$f":"DaysAndWeeks+DATE(역년,8,1)-WEEKDAY(DATE(역년,8,1),(WeekStart=\"월\")+1)+36","v":"2018-09-02"},"2018-09-03"]
[null,null,{"$f":"IF(WEEKDAY(CalendarDay)=WeekStartValue,CONCATENATE(WEEKNUM(CalendarDay),\"주/ \",CalendarDay-DATE(YEAR(CalendarDay),1,0),\"일 \"),CONCATENATE(CalendarDay-DATE(YEAR(CalendarDay),1,0),\"일 \"))","v":"36주/ 245일 "},{"$f":"IF(WEEKDAY(CalendarDay)=WeekStartValue,CONCATENATE(WEEKNUM(CalendarDay),\"주/ \",CalendarDay-DATE(YEAR(CalendarDay),1,0),\"일 \"),CONCATENATE(CalendarDay-DATE(YEAR(CalendarDay),1,0),\"일 \"))","v":"246일 "}]

{"sheet":"9월","index":8,"n_rows":20,"n_cols":9,"rows_kept":20,"merged":[[16,2,17,2],[17,4,19,8]]}
[null,"9월",{"$f":"UPPER(TEXT(WeekStart,\"ddd\"))","v":"일"},{"$f":"UPPER(TEXT(D3,\"aaa\"))","v":"월"},"화","수","목","금","토"]
[null,{"$f":"역년","v":2018}]
[null,null,{"$f":"DaysAndWeeks+DATE(역년,9,1)-WEEKDAY(DATE(역년,9,1),(WeekStart=\"월\")+1)+1","v":"2018-08-26"},"2018-08-27","2018-08-28","2018-08-29","2018-08-30","2018-08-31","2018-09-01"]
[null,null,{"$f":"IF(DAY(CalendarDay)=1,CONCATENATE(WEEKNUM(CalendarDay),\"주/ \",CalendarDay-DATE(YEAR(CalendarDay),1,0),\"일 \"),CONCATENATE(CalendarDay-DATE(YEAR(CalendarDay),1,0),\"일 \"))","v":"238일 "},{"$f":"IF(DAY(CalendarDay)=1,CONCATENATE(WEEKNUM(CalendarDay),\"주/ \",CalendarDay-DATE(YEAR(CalendarDay),1,0),\"일 \"),CONCATENATE(CalendarDay-DATE(YEAR(CalendarDay),1,0),\"일 \"))","v":"239일 "},{"$f":"IF(DAY(CalendarDay)=1,CONCATENATE(WEEKNUM(CalendarDay),\"주/ \",CalendarDay-DATE(YEAR(CalendarDay),1,0),\"일 \"),CONCATENATE(CalendarDay-DATE(YEAR(CalendarDay),1,0),\"일 \"))","v":"240일 "},{"$f":"IF(DAY(CalendarDay)=1,CONCATENATE(WEEKNUM(CalendarDay),\"주/ \",CalendarDay-DATE(YEAR(CalendarDay),1,0),\"일 \"),CONCATENATE(CalendarDay-DATE(YEAR(CalendarDay),1,0),\"일 \"))","v":"241일 "},{"$f":"IF(DAY(CalendarDay)=1,CONCATENATE(WEEKNUM(CalendarDay),\"주/ \",CalendarDay-DATE(YEAR(CalendarDay),1,0),\"일 \"),CONCATENATE(CalendarDay-DATE(YEAR(CalendarDay),1,0),\"일 \"))","v":"242일 "},{"$f":"IF(DAY(CalendarDay)=1,CONCATENATE(WEEKNUM(CalendarDay),\"주/ \",CalendarDay-DATE(YEAR(CalendarDay),1,0),\"일 \"),CONCATENATE(CalendarDay-DATE(YEAR(CalendarDay),1,0),\"일 \"))","v":"243일 "},{"$f":"IF(DAY(CalendarDay)=1,CONCATENATE(WEEKNUM(CalendarDay),\"주/ \",CalendarDay-DATE(YEAR(CalendarDay),1,0),\"일 \"),CONCATENATE(CalendarDay-DATE(YEAR(CalendarDay),1,0),\"일 \"))","v":"35주/ 244일 "}]
[]
[null,null,{"$f":"DaysAndWeeks+DATE(역년,9,1)-WEEKDAY(DATE(역년,9,1),(WeekStart=\"월\")+1)+8","v":"2018-09-02"},"2018-09-03","2018-09-04","2018-09-05","2018-09-06","2018-09-07","2018-09-08"]
[null,null,{"$f":"IF(WEEKDAY(CalendarDay)=WeekStartValue,CONCATENATE(WEEKNUM(CalendarDay),\"주/ \",CalendarDay-DATE(YEAR(CalendarDay),1,0),\"일 \"),CONCATENATE(CalendarDay-DATE(YEAR(CalendarDay),1,0),\"일 \"))","v":"36주/ 245일 "},{"$f":"IF(WEEKDAY(CalendarDay)=WeekStartValue,CONCATENATE(WEEKNUM(CalendarDay),\"주/ \",CalendarDay-DATE(YEAR(CalendarDay),1,0),\"일 \"),CONCATENATE(CalendarDay-DATE(YEAR(CalendarDay),1,0),\"일 \"))","v":"246일 "},{"$f":"IF(WEEKDAY(CalendarDay)=WeekStartValue,CONCATENATE(WEEKNUM(CalendarDay),\"주/ \",CalendarDay-DATE(YEAR(CalendarDay),1,0),\"일 \"),CONCATENATE(CalendarDay-DATE(YEAR(CalendarDay),1,0),\"일 \"))","v":"247일 "},{"$f":"IF(WEEKDAY(CalendarDay)=WeekStartValue,CONCATENATE(WEEKNUM(CalendarDay),\"주/ \",CalendarDay-DATE(YEAR(CalendarDay),1,0),\"일 \"),CONCATENATE(CalendarDay-DATE(YEAR(CalendarDay),1,0),\"일 \"))","v":"248일 "},{"$f":"IF(WEEKDAY(CalendarDay)=WeekStartValue,CONCATENATE(WEEKNUM(CalendarDay),\"주/ \",CalendarDay-DATE(YEAR(CalendarDay),1,0),\"일 \"),CONCATENATE(CalendarDay-DATE(YEAR(CalendarDay),1,0),\"일 \"))","v":"249일 "},{"$f":"IF(WEEKDAY(CalendarDay)=WeekStartValue,CONCATENATE(WEEKNUM(CalendarDay),\"주/ \",CalendarDay-DATE(YEAR(CalendarDay),1,0),\"일 \"),CONCATENATE(CalendarDay-DATE(YEAR(CalendarDay),1,0),\"일 \"))","v":"250일 "},{"$f":"IF(WEEKDAY(CalendarDay)=WeekStartValue,CONCATENATE(WEEKNUM(CalendarDay),\"주/ \",CalendarDay-DATE(YEAR(CalendarDay),1,0),\"일 \"),CONCATENATE(CalendarDay-DATE(YEAR(CalendarDay),1,0),\"일 \"))","v":"251일 "}]
[]
[null,null,{"$f":"DaysAndWeeks+DATE(역년,9,1)-WEEKDAY(DATE(역년,9,1),(WeekStart=\"월\")+1)+15","v":"2018-09-09"},"2018-09-10","2018-09-11","2018-09-12","2018-09-13","2018-09-14","2018-09-15"]
[null,null,{"$f":"IF(WEEKDAY(CalendarDay)=WeekStartValue,CONCATENATE(WEEKNUM(CalendarDay),\"주/ \",CalendarDay-DATE(YEAR(CalendarDay),1,0),\"일 \"),CONCATENATE(CalendarDay-DATE(YEAR(CalendarDay),1,0),\"일 \"))","v":"37주/ 252일 "},{"$f":"IF(WEEKDAY(CalendarDay)=WeekStartValue,CONCATENATE(WEEKNUM(CalendarDay),\"주/ \",CalendarDay-DATE(YEAR(CalendarDay),1,0),\"일 \"),CONCATENATE(CalendarDay-DATE(YEAR(CalendarDay),1,0),\"일 \"))","v":"253일 "},{"$f":"IF(WEEKDAY(CalendarDay)=WeekStartValue,CONCATENATE(WEEKNUM(CalendarDay),\"주/ \",CalendarDay-DATE(YEAR(CalendarDay),1,0),\"일 \"),CONCATENATE(CalendarDay-DATE(YEAR(CalendarDay),1,0),\"일 \"))","v":"254일 "},{"$f":"IF(WEEKDAY(CalendarDay)=WeekStartValue,CONCATENATE(WEEKNUM(CalendarDay),\"주/ \",CalendarDay-DATE(YEAR(CalendarDay),1,0),\"일 \"),CONCATENATE(CalendarDay-DATE(YEAR(CalendarDay),1,0),\"일 \"))","v":"255일 "},{"$f":"IF(WEEKDAY(CalendarDay)=WeekStartValue,CONCATENATE(WEEKNUM(CalendarDay),\"주/ \",CalendarDay-DATE(YEAR(CalendarDay),1,0),\"일 \"),CONCATENATE(CalendarDay-DATE(YEAR(CalendarDay),1,0),\"일 \"))","v":"256일 "},{"$f":"IF(WEEKDAY(CalendarDay)=WeekStartValue,CONCATENATE(WEEKNUM(CalendarDay),\"주/ \",CalendarDay-DATE(YEAR(CalendarDay),1,0),\"일 \"),CONCATENATE(CalendarDay-DATE(YEAR(CalendarDay),1,0),\"일 \"))","v":"257일 "},{"$f":"IF(WEEKDAY(CalendarDay)=WeekStartValue,CONCATENATE(WEEKNUM(CalendarDay),\"주/ \",CalendarDay-DATE(YEAR(CalendarDay),1,0),\"일 \"),CONCATENATE(CalendarDay-DATE(YEAR(CalendarDay),1,0),\"일 \"))","v":"258일 "}]
[]
[null,null,{"$f":"DaysAndWeeks+DATE(역년,9,1)-WEEKDAY(DATE(역년,9,1),(WeekStart=\"월\")+1)+22","v":"2018-09-16"},"2018-09-17","2018-09-18","2018-09-19","2018-09-20","2018-09-21","2018-09-22"]
[null,null,{"$f":"IF(WEEKDAY(CalendarDay)=WeekStartValue,CONCATENATE(WEEKNUM(CalendarDay),\"주/ \",CalendarDay-DATE(YEAR(CalendarDay),1,0),\"일 \"),CONCATENATE(CalendarDay-DATE(YEAR(CalendarDay),1,0),\"일 \"))","v":"38주/ 259일 "},{"$f":"IF(WEEKDAY(CalendarDay)=WeekStartValue,CONCATENATE(WEEKNUM(CalendarDay),\"주/ \",CalendarDay-DATE(YEAR(CalendarDay),1,0),\"일 \"),CONCATENATE(CalendarDay-DATE(YEAR(CalendarDay),1,0),\"일 \"))","v":"260일 "},{"$f":"IF(WEEKDAY(CalendarDay)=WeekStartValue,CONCATENATE(WEEKNUM(CalendarDay),\"주/ \",CalendarDay-DATE(YEAR(CalendarDay),1,0),\"일 \"),CONCATENATE(CalendarDay-DATE(YEAR(CalendarDay),1,0),\"일 \"))","v":"261일 "},{"$f":"IF(WEEKDAY(CalendarDay)=WeekStartValue,CONCATENATE(WEEKNUM(CalendarDay),\"주/ \",CalendarDay-DATE(YEAR(CalendarDay),1,0),\"일 \"),CONCATENATE(CalendarDay-DATE(YEAR(CalendarDay),1,0),\"일 \"))","v":"262일 "},{"$f":"IF(WEEKDAY(CalendarDay)=WeekStartValue,CONCATENATE(WEEKNUM(CalendarDay),\"주/ \",CalendarDay-DATE(YEAR(CalendarDay),1,0),\"일 \"),CONCATENATE(CalendarDay-DATE(YEAR(CalendarDay),1,0),\"일 \"))","v":"263일 "},{"$f":"IF(WEEKDAY(CalendarDay)=WeekStartValue,CONCATENATE(WEEKNUM(CalendarDay),\"주/ \",CalendarDay-DATE(YEAR(CalendarDay),1,0),\"일 \"),CONCATENATE(CalendarDay-DATE(YEAR(CalendarDay),1,0),\"일 \"))","v":"264일 "},{"$f":"IF(WEEKDAY(CalendarDay)=WeekStartValue,CONCATENATE(WEEKNUM(CalendarDay),\"주/ \",CalendarDay-DATE(YEAR(CalendarDay),1,0),\"일 \"),CONCATENATE(CalendarDay-DATE(YEAR(CalendarDay),1,0),\"일 \"))","v":"265일 "}]
[]
[null,null,{"$f":"DaysAndWeeks+DATE(역년,9,1)-WEEKDAY(DATE(역년,9,1),(WeekStart=\"월\")+1)+29","v":"2018-09-23"},"2018-09-24","2018-09-25","2018-09-26","2018-09-27","2018-09-28","2018-09-29"]
[null,null,{"$f":"IF(WEEKDAY(CalendarDay)=WeekStartValue,CONCATENATE(WEEKNUM(CalendarDay),\"주/ \",CalendarDay-DATE(YEAR(CalendarDay),1,0),\"일 \"),CONCATENATE(CalendarDay-DATE(YEAR(CalendarDay),1,0),\"일 \"))","v":"39주/ 266일 "},{"$f":"IF(WEEKDAY(CalendarDay)=WeekStartValue,CONCATENATE(WEEKNUM(CalendarDay),\"주/ \",CalendarDay-DATE(YEAR(CalendarDay),1,0),\"일 \"),CONCATENATE(CalendarDay-DATE(YEAR(CalendarDay),1,0),\"일 \"))","v":"267일 "},{"$f":"IF(WEEKDAY(CalendarDay)=WeekStartValue,CONCATENATE(WEEKNUM(CalendarDay),\"주/ \",CalendarDay-DATE(YEAR(CalendarDay),1,0),\"일 \"),CONCATENATE(CalendarDay-DATE(YEAR(CalendarDay),1,0),\"일 \"))","v":"268일 "},{"$f":"IF(WEEKDAY(CalendarDay)=WeekStartValue,CONCATENATE(WEEKNUM(CalendarDay),\"주/ \",CalendarDay-DATE(YEAR(CalendarDay),1,0),\"일 \"),CONCATENATE(CalendarDay-DATE(YEAR(CalendarDay),1,0),\"일 \"))","v":"269일 "},{"$f":"IF(WEEKDAY(CalendarDay)=WeekStartValue,CONCATENATE(WEEKNUM(CalendarDay),\"주/ \",CalendarDay-DATE(YEAR(CalendarDay),1,0),\"일 \"),CONCATENATE(CalendarDay-DATE(YEAR(CalendarDay),1,0),\"일 \"))","v":"270일 "},{"$f":"IF(WEEKDAY(CalendarDay)=WeekStartValue,CONCATENATE(WEEKNUM(CalendarDay),\"주/ \",CalendarDay-DATE(YEAR(CalendarDay),1,0),\"일 \"),CONCATENATE(CalendarDay-DATE(YEAR(CalendarDay),1,0),\"일 \"))","v":"271일 "},{"$f":"IF(WEEKDAY(CalendarDay)=WeekStartValue,CONCATENATE(WEEKNUM(CalendarDay),\"주/ \",CalendarDay-DATE(YEAR(CalendarDay),1,0),\"일 \"),CONCATENATE(CalendarDay-DATE(YEAR(CalendarDay),1,0),\"일 \"))","v":"272일 "}]
[{"$nulls":4},"메모"]
[]
[null,null,{"$f":"DaysAndWeeks+DATE(역년,9,1)-WEEKDAY(DATE(역년,9,1),(WeekStart=\"월\")+1)+36","v":"2018-09-30"},"2018-10-01"]
[null,null,{"$f":"IF(WEEKDAY(CalendarDay)=WeekStartValue,CONCATENATE(WEEKNUM(CalendarDay),\"주/ \",CalendarDay-DATE(YEAR(CalendarDay),1,0),\"일 \"),CONCATENATE(CalendarDay-DATE(YEAR(CalendarDay),1,0),\"일 \"))","v":"40주/ 273일 "},{"$f":"IF(WEEKDAY(CalendarDay)=WeekStartValue,CONCATENATE(WEEKNUM(CalendarDay),\"주/ \",CalendarDay-DATE(YEAR(CalendarDay),1,0),\"일 \"),CONCATENATE(CalendarDay-DATE(YEAR(CalendarDay),1,0),\"일 \"))","v":"274일 "}]

{"sheet":"10월","index":9,"n_rows":20,"n_cols":9,"rows_kept":20,"merged":[[16,2,17,2],[17,4,19,8]]}
[null,"10월",{"$f":"UPPER(TEXT(WeekStart,\"ddd\"))","v":"일"},{"$f":"UPPER(TEXT(D3,\"aaa\"))","v":"월"},"화","수","목","금","토"]
[null,{"$f":"역년","v":2018}]
[null,null,{"$f":"DaysAndWeeks+DATE(역년,10,1)-WEEKDAY(DATE(역년,10,1),(WeekStart=\"월\")+1)+1","v":"2018-09-30"},"2018-10-01","2018-10-02","2018-10-03","2018-10-04","2018-10-05","2018-10-06"]
[null,null,{"$f":"IF(DAY(CalendarDay)=1,CONCATENATE(WEEKNUM(CalendarDay),\"주/ \",CalendarDay-DATE(YEAR(CalendarDay),1,0),\"일 \"),CONCATENATE(CalendarDay-DATE(YEAR(CalendarDay),1,0),\"일 \"))","v":"273일 "},{"$f":"IF(DAY(CalendarDay)=1,CONCATENATE(WEEKNUM(CalendarDay),\"주/ \",CalendarDay-DATE(YEAR(CalendarDay),1,0),\"일 \"),CONCATENATE(CalendarDay-DATE(YEAR(CalendarDay),1,0),\"일 \"))","v":"40주/ 274일 "},{"$f":"IF(DAY(CalendarDay)=1,CONCATENATE(WEEKNUM(CalendarDay),\"주/ \",CalendarDay-DATE(YEAR(CalendarDay),1,0),\"일 \"),CONCATENATE(CalendarDay-DATE(YEAR(CalendarDay),1,0),\"일 \"))","v":"275일 "},{"$f":"IF(DAY(CalendarDay)=1,CONCATENATE(WEEKNUM(CalendarDay),\"주/ \",CalendarDay-DATE(YEAR(CalendarDay),1,0),\"일 \"),CONCATENATE(CalendarDay-DATE(YEAR(CalendarDay),1,0),\"일 \"))","v":"276일 "},{"$f":"IF(DAY(CalendarDay)=1,CONCATENATE(WEEKNUM(CalendarDay),\"주/ \",CalendarDay-DATE(YEAR(CalendarDay),1,0),\"일 \"),CONCATENATE(CalendarDay-DATE(YEAR(CalendarDay),1,0),\"일 \"))","v":"277일 "},{"$f":"IF(DAY(CalendarDay)=1,CONCATENATE(WEEKNUM(CalendarDay),\"주/ \",CalendarDay-DATE(YEAR(CalendarDay),1,0),\"일 \"),CONCATENATE(CalendarDay-DATE(YEAR(CalendarDay),1,0),\"일 \"))","v":"278일 "},{"$f":"IF(DAY(CalendarDay)=1,CONCATENATE(WEEKNUM(CalendarDay),\"주/ \",CalendarDay-DATE(YEAR(CalendarDay),1,0),\"일 \"),CONCATENATE(CalendarDay-DATE(YEAR(CalendarDay),1,0),\"일 \"))","v":"279일 "}]
[]
[null,null,{"$f":"DaysAndWeeks+DATE(역년,10,1)-WEEKDAY(DATE(역년,10,1),(WeekStart=\"월\")+1)+8","v":"2018-10-07"},"2018-10-08","2018-10-09","2018-10-10","2018-10-11","2018-10-12","2018-10-13"]
[null,null,{"$f":"IF(WEEKDAY(CalendarDay)=WeekStartValue,CONCATENATE(WEEKNUM(CalendarDay),\"주/ \",CalendarDay-DATE(YEAR(CalendarDay),1,0),\"일 \"),CONCATENATE(CalendarDay-DATE(YEAR(CalendarDay),1,0),\"일 \"))","v":"41주/ 280일 "},{"$f":"IF(WEEKDAY(CalendarDay)=WeekStartValue,CONCATENATE(WEEKNUM(CalendarDay),\"주/ \",CalendarDay-DATE(YEAR(CalendarDay),1,0),\"일 \"),CONCATENATE(CalendarDay-DATE(YEAR(CalendarDay),1,0),\"일 \"))","v":"281일 "},{"$f":"IF(WEEKDAY(CalendarDay)=WeekStartValue,CONCATENATE(WEEKNUM(CalendarDay),\"주/ \",CalendarDay-DATE(YEAR(CalendarDay),1,0),\"일 \"),CONCATENATE(CalendarDay-DATE(YEAR(CalendarDay),1,0),\"일 \"))","v":"282일 "},{"$f":"IF(WEEKDAY(CalendarDay)=WeekStartValue,CONCATENATE(WEEKNUM(CalendarDay),\"주/ \",CalendarDay-DATE(YEAR(CalendarDay),1,0),\"일 \"),CONCATENATE(CalendarDay-DATE(YEAR(CalendarDay),1,0),\"일 \"))","v":"283일 "},{"$f":"IF(WEEKDAY(CalendarDay)=WeekStartValue,CONCATENATE(WEEKNUM(CalendarDay),\"주/ \",CalendarDay-DATE(YEAR(CalendarDay),1,0),\"일 \"),CONCATENATE(CalendarDay-DATE(YEAR(CalendarDay),1,0),\"일 \"))","v":"284일 "},{"$f":"IF(WEEKDAY(CalendarDay)=WeekStartValue,CONCATENATE(WEEKNUM(CalendarDay),\"주/ \",CalendarDay-DATE(YEAR(CalendarDay),1,0),\"일 \"),CONCATENATE(CalendarDay-DATE(YEAR(CalendarDay),1,0),\"일 \"))","v":"285일 "},{"$f":"IF(WEEKDAY(CalendarDay)=WeekStartValue,CONCATENATE(WEEKNUM(CalendarDay),\"주/ \",CalendarDay-DATE(YEAR(CalendarDay),1,0),\"일 \"),CONCATENATE(CalendarDay-DATE(YEAR(CalendarDay),1,0),\"일 \"))","v":"286일 "}]
[]
[null,null,{"$f":"DaysAndWeeks+DATE(역년,10,1)-WEEKDAY(DATE(역년,10,1),(WeekStart=\"월\")+1)+15","v":"2018-10-14"},"2018-10-15","2018-10-16","2018-10-17","2018-10-18","2018-10-19","2018-10-20"]
[null,null,{"$f":"IF(WEEKDAY(CalendarDay)=WeekStartValue,CONCATENATE(WEEKNUM(CalendarDay),\"주/ \",CalendarDay-DATE(YEAR(CalendarDay),1,0),\"일 \"),CONCATENATE(CalendarDay-DATE(YEAR(CalendarDay),1,0),\"일 \"))","v":"42주/ 287일 "},{"$f":"IF(WEEKDAY(CalendarDay)=WeekStartValue,CONCATENATE(WEEKNUM(CalendarDay),\"주/ \",CalendarDay-DATE(YEAR(CalendarDay),1,0),\"일 \"),CONCATENATE(CalendarDay-DATE(YEAR(CalendarDay),1,0),\"일 \"))","v":"288일 "},{"$f":"IF(WEEKDAY(CalendarDay)=WeekStartValue,CONCATENATE(WEEKNUM(CalendarDay),\"주/ \",CalendarDay-DATE(YEAR(CalendarDay),1,0),\"일 \"),CONCATENATE(CalendarDay-DATE(YEAR(CalendarDay),1,0),\"일 \"))","v":"289일 "},{"$f":"IF(WEEKDAY(CalendarDay)=WeekStartValue,CONCATENATE(WEEKNUM(CalendarDay),\"주/ \",CalendarDay-DATE(YEAR(CalendarDay),1,0),\"일 \"),CONCATENATE(CalendarDay-DATE(YEAR(CalendarDay),1,0),\"일 \"))","v":"290일 "},{"$f":"IF(WEEKDAY(CalendarDay)=WeekStartValue,CONCATENATE(WEEKNUM(CalendarDay),\"주/ \",CalendarDay-DATE(YEAR(CalendarDay),1,0),\"일 \"),CONCATENATE(CalendarDay-DATE(YEAR(CalendarDay),1,0),\"일 \"))","v":"291일 "},{"$f":"IF(WEEKDAY(CalendarDay)=WeekStartValue,CONCATENATE(WEEKNUM(CalendarDay),\"주/ \",CalendarDay-DATE(YEAR(CalendarDay),1,0),\"일 \"),CONCATENATE(CalendarDay-DATE(YEAR(CalendarDay),1,0),\"일 \"))","v":"292일 "},{"$f":"IF(WEEKDAY(CalendarDay)=WeekStartValue,CONCATENATE(WEEKNUM(CalendarDay),\"주/ \",CalendarDay-DATE(YEAR(CalendarDay),1,0),\"일 \"),CONCATENATE(CalendarDay-DATE(YEAR(CalendarDay),1,0),\"일 \"))","v":"293일 "}]
[]
[null,null,{"$f":"DaysAndWeeks+DATE(역년,10,1)-WEEKDAY(DATE(역년,10,1),(WeekStart=\"월\")+1)+22","v":"2018-10-21"},"2018-10-22","2018-10-23","2018-10-24","2018-10-25","2018-10-26","2018-10-27"]
[null,null,{"$f":"IF(WEEKDAY(CalendarDay)=WeekStartValue,CONCATENATE(WEEKNUM(CalendarDay),\"주/ \",CalendarDay-DATE(YEAR(CalendarDay),1,0),\"일 \"),CONCATENATE(CalendarDay-DATE(YEAR(CalendarDay),1,0),\"일 \"))","v":"43주/ 294일 "},{"$f":"IF(WEEKDAY(CalendarDay)=WeekStartValue,CONCATENATE(WEEKNUM(CalendarDay),\"주/ \",CalendarDay-DATE(YEAR(CalendarDay),1,0),\"일 \"),CONCATENATE(CalendarDay-DATE(YEAR(CalendarDay),1,0),\"일 \"))","v":"295일 "},{"$f":"IF(WEEKDAY(CalendarDay)=WeekStartValue,CONCATENATE(WEEKNUM(CalendarDay),\"주/ \",CalendarDay-DATE(YEAR(CalendarDay),1,0),\"일 \"),CONCATENATE(CalendarDay-DATE(YEAR(CalendarDay),1,0),\"일 \"))","v":"296일 "},{"$f":"IF(WEEKDAY(CalendarDay)=WeekStartValue,CONCATENATE(WEEKNUM(CalendarDay),\"주/ \",CalendarDay-DATE(YEAR(CalendarDay),1,0),\"일 \"),CONCATENATE(CalendarDay-DATE(YEAR(CalendarDay),1,0),\"일 \"))","v":"297일 "},{"$f":"IF(WEEKDAY(CalendarDay)=WeekStartValue,CONCATENATE(WEEKNUM(CalendarDay),\"주/ \",CalendarDay-DATE(YEAR(CalendarDay),1,0),\"일 \"),CONCATENATE(CalendarDay-DATE(YEAR(CalendarDay),1,0),\"일 \"))","v":"298일 "},{"$f":"IF(WEEKDAY(CalendarDay)=WeekStartValue,CONCATENATE(WEEKNUM(CalendarDay),\"주/ \",CalendarDay-DATE(YEAR(CalendarDay),1,0),\"일 \"),CONCATENATE(CalendarDay-DATE(YEAR(CalendarDay),1,0),\"일 \"))","v":"299일 "},{"$f":"IF(WEEKDAY(CalendarDay)=WeekStartValue,CONCATENATE(WEEKNUM(CalendarDay),\"주/ \",CalendarDay-DATE(YEAR(CalendarDay),1,0),\"일 \"),CONCATENATE(CalendarDay-DATE(YEAR(CalendarDay),1,0),\"일 \"))","v":"300일 "}]
[]
[null,null,{"$f":"DaysAndWeeks+DATE(역년,10,1)-WEEKDAY(DATE(역년,10,1),(WeekStart=\"월\")+1)+29","v":"2018-10-28"},"2018-10-29","2018-10-30","2018-10-31","2018-11-01","2018-11-02","2018-11-03"]
[null,null,{"$f":"IF(WEEKDAY(CalendarDay)=WeekStartValue,CONCATENATE(WEEKNUM(CalendarDay),\"주/ \",CalendarDay-DATE(YEAR(CalendarDay),1,0),\"일 \"),CONCATENATE(CalendarDay-DATE(YEAR(CalendarDay),1,0),\"일 \"))","v":"44주/ 301일 "},{"$f":"IF(WEEKDAY(CalendarDay)=WeekStartValue,CONCATENATE(WEEKNUM(CalendarDay),\"주/ \",CalendarDay-DATE(YEAR(CalendarDay),1,0),\"일 \"),CONCATENATE(CalendarDay-DATE(YEAR(CalendarDay),1,0),\"일 \"))","v":"302일 "},{"$f":"IF(WEEKDAY(CalendarDay)=WeekStartValue,CONCATENATE(WEEKNUM(CalendarDay),\"주/ \",CalendarDay-DATE(YEAR(CalendarDay),1,0),\"일 \"),CONCATENATE(CalendarDay-DATE(YEAR(CalendarDay),1,0),\"일 \"))","v":"303일 "},{"$f":"IF(WEEKDAY(CalendarDay)=WeekStartValue,CONCATENATE(WEEKNUM(CalendarDay),\"주/ \",CalendarDay-DATE(YEAR(CalendarDay),1,0),\"일 \"),CONCATENATE(CalendarDay-DATE(YEAR(CalendarDay),1,0),\"일 \"))","v":"304일 "},{"$f":"IF(WEEKDAY(CalendarDay)=WeekStartValue,CONCATENATE(WEEKNUM(CalendarDay),\"주/ \",CalendarDay-DATE(YEAR(CalendarDay),1,0),\"일 \"),CONCATENATE(CalendarDay-DATE(YEAR(CalendarDay),1,0),\"일 \"))","v":"305일 "},{"$f":"IF(WEEKDAY(CalendarDay)=WeekStartValue,CONCATENATE(WEEKNUM(CalendarDay),\"주/ \",CalendarDay-DATE(YEAR(CalendarDay),1,0),\"일 \"),CONCATENATE(CalendarDay-DATE(YEAR(CalendarDay),1,0),\"일 \"))","v":"306일 "},{"$f":"IF(WEEKDAY(CalendarDay)=WeekStartValue,CONCATENATE(WEEKNUM(CalendarDay),\"주/ \",CalendarDay-DATE(YEAR(CalendarDay),1,0),\"일 \"),CONCATENATE(CalendarDay-DATE(YEAR(CalendarDay),1,0),\"일 \"))","v":"307일 "}]
[{"$nulls":4},"메모"]
[]
[null,null,{"$f":"DaysAndWeeks+DATE(역년,10,1)-WEEKDAY(DATE(역년,10,1),(WeekStart=\"월\")+1)+36","v":"2018-11-04"},"2018-11-05"]
[null,null,{"$f":"IF(WEEKDAY(CalendarDay)=WeekStartValue,CONCATENATE(WEEKNUM(CalendarDay),\"주/ \",CalendarDay-DATE(YEAR(CalendarDay),1,0),\"일 \"),CONCATENATE(CalendarDay-DATE(YEAR(CalendarDay),1,0),\"일 \"))","v":"45주/ 308일 "},{"$f":"IF(WEEKDAY(CalendarDay)=WeekStartValue,CONCATENATE(WEEKNUM(CalendarDay),\"주/ \",CalendarDay-DATE(YEAR(CalendarDay),1,0),\"일 \"),CONCATENATE(CalendarDay-DATE(YEAR(CalendarDay),1,0),\"일 \"))","v":"309일 "}]

{"sheet":"11월","index":10,"n_rows":20,"n_cols":9,"rows_kept":20,"merged":[[16,2,17,2],[17,4,19,8]]}
[null,"11월",{"$f":"UPPER(TEXT(WeekStart,\"ddd\"))","v":"일"},{"$f":"UPPER(TEXT(D3,\"aaa\"))","v":"월"},"화","수","목","금","토"]
[null,{"$f":"역년","v":2018}]
[null,null,{"$f":"DaysAndWeeks+DATE(역년,11,1)-WEEKDAY(DATE(역년,11,1),(WeekStart=\"월\")+1)+1","v":"2018-10-28"},"2018-10-29","2018-10-30","2018-10-31","2018-11-01","2018-11-02","2018-11-03"]
[null,null,{"$f":"IF(DAY(CalendarDay)=1,CONCATENATE(WEEKNUM(CalendarDay),\"주/ \",CalendarDay-DATE(YEAR(CalendarDay),1,0),\"일 \"),CONCATENATE(CalendarDay-DATE(YEAR(CalendarDay),1,0),\"일 \"))","v":"301일 "},{"$f":"IF(DAY(CalendarDay)=1,CONCATENATE(WEEKNUM(CalendarDay),\"주/ \",CalendarDay-DATE(YEAR(CalendarDay),1,0),\"일 \"),CONCATENATE(CalendarDay-DATE(YEAR(CalendarDay),1,0),\"일 \"))","v":"302일 "},{"$f":"IF(DAY(CalendarDay)=1,CONCATENATE(WEEKNUM(CalendarDay),\"주/ \",CalendarDay-DATE(YEAR(CalendarDay),1,0),\"일 \"),CONCATENATE(CalendarDay-DATE(YEAR(CalendarDay),1,0),\"일 \"))","v":"303일 "},{"$f":"IF(DAY(CalendarDay)=1,CONCATENATE(WEEKNUM(CalendarDay),\"주/ \",CalendarDay-DATE(YEAR(CalendarDay),1,0),\"일 \"),CONCATENATE(CalendarDay-DATE(YEAR(CalendarDay),1,0),\"일 \"))","v":"304일 "},{"$f":"IF(DAY(CalendarDay)=1,CONCATENATE(WEEKNUM(CalendarDay),\"주/ \",CalendarDay-DATE(YEAR(CalendarDay),1,0),\"일 \"),CONCATENATE(CalendarDay-DATE(YEAR(CalendarDay),1,0),\"일 \"))","v":"44주/ 305일 "},{"$f":"IF(DAY(CalendarDay)=1,CONCATENATE(WEEKNUM(CalendarDay),\"주/ \",CalendarDay-DATE(YEAR(CalendarDay),1,0),\"일 \"),CONCATENATE(CalendarDay-DATE(YEAR(CalendarDay),1,0),\"일 \"))","v":"306일 "},{"$f":"IF(DAY(CalendarDay)=1,CONCATENATE(WEEKNUM(CalendarDay),\"주/ \",CalendarDay-DATE(YEAR(CalendarDay),1,0),\"일 \"),CONCATENATE(CalendarDay-DATE(YEAR(CalendarDay),1,0),\"일 \"))","v":"307일 "}]
[]
[null,null,{"$f":"DaysAndWeeks+DATE(역년,11,1)-WEEKDAY(DATE(역년,11,1),(WeekStart=\"월\")+1)+8","v":"2018-11-04"},"2018-11-05","2018-11-06","2018-11-07","2018-11-08","2018-11-09","2018-11-10"]
[null,null,{"$f":"IF(WEEKDAY(CalendarDay)=WeekStartValue,CONCATENATE(WEEKNUM(CalendarDay),\"주/ \",CalendarDay-DATE(YEAR(CalendarDay),1,0),\"일 \"),CONCATENATE(CalendarDay-DATE(YEAR(CalendarDay),1,0),\"일 \"))","v":"45주/ 308일 "},{"$f":"IF(WEEKDAY(CalendarDay)=WeekStartValue,CONCATENATE(WEEKNUM(CalendarDay),\"주/ \",CalendarDay-DATE(YEAR(CalendarDay),1,0),\"일 \"),CONCATENATE(CalendarDay-DATE(YEAR(CalendarDay),1,0),\"일 \"))","v":"309일 "},{"$f":"IF(WEEKDAY(CalendarDay)=WeekStartValue,CONCATENATE(WEEKNUM(CalendarDay),\"주/ \",CalendarDay-DATE(YEAR(CalendarDay),1,0),\"일 \"),CONCATENATE(CalendarDay-DATE(YEAR(CalendarDay),1,0),\"일 \"))","v":"310일 "},{"$f":"IF(WEEKDAY(CalendarDay)=WeekStartValue,CONCATENATE(WEEKNUM(CalendarDay),\"주/ \",CalendarDay-DATE(YEAR(CalendarDay),1,0),\"일 \"),CONCATENATE(CalendarDay-DATE(YEAR(CalendarDay),1,0),\"일 \"))","v":"311일 "},{"$f":"IF(WEEKDAY(CalendarDay)=WeekStartValue,CONCATENATE(WEEKNUM(CalendarDay),\"주/ \",CalendarDay-DATE(YEAR(CalendarDay),1,0),\"일 \"),CONCATENATE(CalendarDay-DATE(YEAR(CalendarDay),1,0),\"일 \"))","v":"312일 "},{"$f":"IF(WEEKDAY(CalendarDay)=WeekStartValue,CONCATENATE(WEEKNUM(CalendarDay),\"주/ \",CalendarDay-DATE(YEAR(CalendarDay),1,0),\"일 \"),CONCATENATE(CalendarDay-DATE(YEAR(CalendarDay),1,0),\"일 \"))","v":"313일 "},{"$f":"IF(WEEKDAY(CalendarDay)=WeekStartValue,CONCATENATE(WEEKNUM(CalendarDay),\"주/ \",CalendarDay-DATE(YEAR(CalendarDay),1,0),\"일 \"),CONCATENATE(CalendarDay-DATE(YEAR(CalendarDay),1,0),\"일 \"))","v":"314일 "}]
[]
[null,null,{"$f":"DaysAndWeeks+DATE(역년,11,1)-WEEKDAY(DATE(역년,11,1),(WeekStart=\"월\")+1)+15","v":"2018-11-11"},"2018-11-12","2018-11-13","2018-11-14","2018-11-15","2018-11-16","2018-11-17"]
[null,null,{"$f":"IF(WEEKDAY(CalendarDay)=WeekStartValue,CONCATENATE(WEEKNUM(CalendarDay),\"주/ \",CalendarDay-DATE(YEAR(CalendarDay),1,0),\"일 \"),CONCATENATE(CalendarDay-DATE(YEAR(CalendarDay),1,0),\"일 \"))","v":"46주/ 315일 "},{"$f":"IF(WEEKDAY(CalendarDay)=WeekStartValue,CONCATENATE(WEEKNUM(CalendarDay),\"주/ \",CalendarDay-DATE(YEAR(CalendarDay),1,0),\"일 \"),CONCATENATE(CalendarDay-DATE(YEAR(CalendarDay),1,0),\"일 \"))","v":"316일 "},{"$f":"IF(WEEKDAY(CalendarDay)=WeekStartValue,CONCATENATE(WEEKNUM(CalendarDay),\"주/ \",CalendarDay-DATE(YEAR(CalendarDay),1,0),\"일 \"),CONCATENATE(CalendarDay-DATE(YEAR(CalendarDay),1,0),\"일 \"))","v":"317일 "},{"$f":"IF(WEEKDAY(CalendarDay)=WeekStartValue,CONCATENATE(WEEKNUM(CalendarDay),\"주/ \",CalendarDay-DATE(YEAR(CalendarDay),1,0),\"일 \"),CONCATENATE(CalendarDay-DATE(YEAR(CalendarDay),1,0),\"일 \"))","v":"318일 "},{"$f":"IF(WEEKDAY(CalendarDay)=WeekStartValue,CONCATENATE(WEEKNUM(CalendarDay),\"주/ \",CalendarDay-DATE(YEAR(CalendarDay),1,0),\"일 \"),CONCATENATE(CalendarDay-DATE(YEAR(CalendarDay),1,0),\"일 \"))","v":"319일 "},{"$f":"IF(WEEKDAY(CalendarDay)=WeekStartValue,CONCATENATE(WEEKNUM(CalendarDay),\"주/ \",CalendarDay-DATE(YEAR(CalendarDay),1,0),\"일 \"),CONCATENATE(CalendarDay-DATE(YEAR(CalendarDay),1,0),\"일 \"))","v":"320일 "},{"$f":"IF(WEEKDAY(CalendarDay)=WeekStartValue,CONCATENATE(WEEKNUM(CalendarDay),\"주/ \",CalendarDay-DATE(YEAR(CalendarDay),1,0),\"일 \"),CONCATENATE(CalendarDay-DATE(YEAR(CalendarDay),1,0),\"일 \"))","v":"321일 "}]
[]
[null,null,{"$f":"DaysAndWeeks+DATE(역년,11,1)-WEEKDAY(DATE(역년,11,1),(WeekStart=\"월\")+1)+22","v":"2018-11-18"},"2018-11-19","2018-11-20","2018-11-21","2018-11-22","2018-11-23","2018-11-24"]
[null,null,{"$f":"IF(WEEKDAY(CalendarDay)=WeekStartValue,CONCATENATE(WEEKNUM(CalendarDay),\"주/ \",CalendarDay-DATE(YEAR(CalendarDay),1,0),\"일 \"),CONCATENATE(CalendarDay-DATE(YEAR(CalendarDay),1,0),\"일 \"))","v":"47주/ 322일 "},{"$f":"IF(WEEKDAY(CalendarDay)=WeekStartValue,CONCATENATE(WEEKNUM(CalendarDay),\"주/ \",CalendarDay-DATE(YEAR(CalendarDay),1,0),\"일 \"),CONCATENATE(CalendarDay-DATE(YEAR(CalendarDay),1,0),\"일 \"))","v":"323일 "},{"$f":"IF(WEEKDAY(CalendarDay)=WeekStartValue,CONCATENATE(WEEKNUM(CalendarDay),\"주/ \",CalendarDay-DATE(YEAR(CalendarDay),1,0),\"일 \"),CONCATENATE(CalendarDay-DATE(YEAR(CalendarDay),1,0),\"일 \"))","v":"324일 "},{"$f":"IF(WEEKDAY(CalendarDay)=WeekStartValue,CONCATENATE(WEEKNUM(CalendarDay),\"주/ \",CalendarDay-DATE(YEAR(CalendarDay),1,0),\"일 \"),CONCATENATE(CalendarDay-DATE(YEAR(CalendarDay),1,0),\"일 \"))","v":"325일 "},{"$f":"IF(WEEKDAY(CalendarDay)=WeekStartValue,CONCATENATE(WEEKNUM(CalendarDay),\"주/ \",CalendarDay-DATE(YEAR(CalendarDay),1,0),\"일 \"),CONCATENATE(CalendarDay-DATE(YEAR(CalendarDay),1,0),\"일 \"))","v":"326일 "},{"$f":"IF(WEEKDAY(CalendarDay)=WeekStartValue,CONCATENATE(WEEKNUM(CalendarDay),\"주/ \",CalendarDay-DATE(YEAR(CalendarDay),1,0),\"일 \"),CONCATENATE(CalendarDay-DATE(YEAR(CalendarDay),1,0),\"일 \"))","v":"327일 "},{"$f":"IF(WEEKDAY(CalendarDay)=WeekStartValue,CONCATENATE(WEEKNUM(CalendarDay),\"주/ \",CalendarDay-DATE(YEAR(CalendarDay),1,0),\"일 \"),CONCATENATE(CalendarDay-DATE(YEAR(CalendarDay),1,0),\"일 \"))","v":"328일 "}]
[]
[null,null,{"$f":"DaysAndWeeks+DATE(역년,11,1)-WEEKDAY(DATE(역년,11,1),(WeekStart=\"월\")+1)+29","v":"2018-11-25"},"2018-11-26","2018-11-27","2018-11-28","2018-11-29","2018-11-30","2018-12-01"]
[null,null,{"$f":"IF(WEEKDAY(CalendarDay)=WeekStartValue,CONCATENATE(WEEKNUM(CalendarDay),\"주/ \",CalendarDay-DATE(YEAR(CalendarDay),1,0),\"일 \"),CONCATENATE(CalendarDay-DATE(YEAR(CalendarDay),1,0),\"일 \"))","v":"48주/ 329일 "},{"$f":"IF(WEEKDAY(CalendarDay)=WeekStartValue,CONCATENATE(WEEKNUM(CalendarDay),\"주/ \",CalendarDay-DATE(YEAR(CalendarDay),1,0),\"일 \"),CONCATENATE(CalendarDay-DATE(YEAR(CalendarDay),1,0),\"일 \"))","v":"330일 "},{"$f":"IF(WEEKDAY(CalendarDay)=WeekStartValue,CONCATENATE(WEEKNUM(CalendarDay),\"주/ \",CalendarDay-DATE(YEAR(CalendarDay),1,0),\"일 \"),CONCATENATE(CalendarDay-DATE(YEAR(CalendarDay),1,0),\"일 \"))","v":"331일 "},{"$f":"IF(WEEKDAY(CalendarDay)=WeekStartValue,CONCATENATE(WEEKNUM(CalendarDay),\"주/ \",CalendarDay-DATE(YEAR(CalendarDay),1,0),\"일 \"),CONCATENATE(CalendarDay-DATE(YEAR(CalendarDay),1,0),\"일 \"))","v":"332일 "},{"$f":"IF(WEEKDAY(CalendarDay)=WeekStartValue,CONCATENATE(WEEKNUM(CalendarDay),\"주/ \",CalendarDay-DATE(YEAR(CalendarDay),1,0),\"일 \"),CONCATENATE(CalendarDay-DATE(YEAR(CalendarDay),1,0),\"일 \"))","v":"333일 "},{"$f":"IF(WEEKDAY(CalendarDay)=WeekStartValue,CONCATENATE(WEEKNUM(CalendarDay),\"주/ \",CalendarDay-DATE(YEAR(CalendarDay),1,0),\"일 \"),CONCATENATE(CalendarDay-DATE(YEAR(CalendarDay),1,0),\"일 \"))","v":"334일 "},{"$f":"IF(WEEKDAY(CalendarDay)=WeekStartValue,CONCATENATE(WEEKNUM(CalendarDay),\"주/ \",CalendarDay-DATE(YEAR(CalendarDay),1,0),\"일 \"),CONCATENATE(CalendarDay-DATE(YEAR(CalendarDay),1,0),\"일 \"))","v":"335일 "}]
[{"$nulls":4},"메모"]
[]
[null,null,{"$f":"DaysAndWeeks+DATE(역년,11,1)-WEEKDAY(DATE(역년,11,1),(WeekStart=\"월\")+1)+36","v":"2018-12-02"},"2018-12-03"]
[null,null,{"$f":"IF(WEEKDAY(CalendarDay)=WeekStartValue,CONCATENATE(WEEKNUM(CalendarDay),\"주/ \",CalendarDay-DATE(YEAR(CalendarDay),1,0),\"일 \"),CONCATENATE(CalendarDay-DATE(YEAR(CalendarDay),1,0),\"일 \"))","v":"49주/ 336일 "},{"$f":"IF(WEEKDAY(CalendarDay)=WeekStartValue,CONCATENATE(WEEKNUM(CalendarDay),\"주/ \",CalendarDay-DATE(YEAR(CalendarDay),1,0),\"일 \"),CONCATENATE(CalendarDay-DATE(YEAR(CalendarDay),1,0),\"일 \"))","v":"337일 "}]

{"sheet":"12월","index":11,"n_rows":20,"n_cols":9,"rows_kept":20,"merged":[[16,2,17,2],[17,4,19,8]]}
[null,"12월",{"$f":"UPPER(TEXT(WeekStart,\"ddd\"))","v":"일"},{"$f":"UPPER(TEXT(D3,\"aaa\"))","v":"월"},"화","수","목","금","토"]
[null,{"$f":"역년","v":2018}]
[null,null,{"$f":"DaysAndWeeks+DATE(역년,12,1)-WEEKDAY(DATE(역년,12,1),(WeekStart=\"월\")+1)+1","v":"2018-11-25"},"2018-11-26","2018-11-27","2018-11-28","2018-11-29","2018-11-30","2018-12-01"]
[null,null,{"$f":"IF(DAY(CalendarDay)=1,CONCATENATE(WEEKNUM(CalendarDay),\"주/ \",CalendarDay-DATE(YEAR(CalendarDay),1,0),\"일 \"),CONCATENATE(CalendarDay-DATE(YEAR(CalendarDay),1,0),\"일 \"))","v":"329일 "},{"$f":"IF(DAY(CalendarDay)=1,CONCATENATE(WEEKNUM(CalendarDay),\"주/ \",CalendarDay-DATE(YEAR(CalendarDay),1,0),\"일 \"),CONCATENATE(CalendarDay-DATE(YEAR(CalendarDay),1,0),\"일 \"))","v":"330일 "},{"$f":"IF(DAY(CalendarDay)=1,CONCATENATE(WEEKNUM(CalendarDay),\"주/ \",CalendarDay-DATE(YEAR(CalendarDay),1,0),\"일 \"),CONCATENATE(CalendarDay-DATE(YEAR(CalendarDay),1,0),\"일 \"))","v":"331일 "},{"$f":"IF(DAY(CalendarDay)=1,CONCATENATE(WEEKNUM(CalendarDay),\"주/ \",CalendarDay-DATE(YEAR(CalendarDay),1,0),\"일 \"),CONCATENATE(CalendarDay-DATE(YEAR(CalendarDay),1,0),\"일 \"))","v":"332일 "},{"$f":"IF(DAY(CalendarDay)=1,CONCATENATE(WEEKNUM(CalendarDay),\"주/ \",CalendarDay-DATE(YEAR(CalendarDay),1,0),\"일 \"),CONCATENATE(CalendarDay-DATE(YEAR(CalendarDay),1,0),\"일 \"))","v":"333일 "},{"$f":"IF(DAY(CalendarDay)=1,CONCATENATE(WEEKNUM(CalendarDay),\"주/ \",CalendarDay-DATE(YEAR(CalendarDay),1,0),\"일 \"),CONCATENATE(CalendarDay-DATE(YEAR(CalendarDay),1,0),\"일 \"))","v":"334일 "},{"$f":"IF(DAY(CalendarDay)=1,CONCATENATE(WEEKNUM(CalendarDay),\"주/ \",CalendarDay-DATE(YEAR(CalendarDay),1,0),\"일 \"),CONCATENATE(CalendarDay-DATE(YEAR(CalendarDay),1,0),\"일 \"))","v":"48주/ 335일 "}]
[]
[null,null,{"$f":"DaysAndWeeks+DATE(역년,12,1)-WEEKDAY(DATE(역년,12,1),(WeekStart=\"월\")+1)+8","v":"2018-12-02"},"2018-12-03","2018-12-04","2018-12-05","2018-12-06","2018-12-07","2018-12-08"]
[null,null,{"$f":"IF(WEEKDAY(CalendarDay)=WeekStartValue,CONCATENATE(WEEKNUM(CalendarDay),\"주/ \",CalendarDay-DATE(YEAR(CalendarDay),1,0),\"일 \"),CONCATENATE(CalendarDay-DATE(YEAR(CalendarDay),1,0),\"일 \"))","v":"49주/ 336일 "},{"$f":"IF(WEEKDAY(CalendarDay)=WeekStartValue,CONCATENATE(WEEKNUM(CalendarDay),\"주/ \",CalendarDay-DATE(YEAR(CalendarDay),1,0),\"일 \"),CONCATENATE(CalendarDay-DATE(YEAR(CalendarDay),1,0),\"일 \"))","v":"337일 "},{"$f":"IF(WEEKDAY(CalendarDay)=WeekStartValue,CONCATENATE(WEEKNUM(CalendarDay),\"주/ \",CalendarDay-DATE(YEAR(CalendarDay),1,0),\"일 \"),CONCATENATE(CalendarDay-DATE(YEAR(CalendarDay),1,0),\"일 \"))","v":"338일 "},{"$f":"IF(WEEKDAY(CalendarDay)=WeekStartValue,CONCATENATE(WEEKNUM(CalendarDay),\"주/ \",CalendarDay-DATE(YEAR(CalendarDay),1,0),\"일 \"),CONCATENATE(CalendarDay-DATE(YEAR(CalendarDay),1,0),\"일 \"))","v":"339일 "},{"$f":"IF(WEEKDAY(CalendarDay)=WeekStartValue,CONCATENATE(WEEKNUM(CalendarDay),\"주/ \",CalendarDay-DATE(YEAR(CalendarDay),1,0),\"일 \"),CONCATENATE(CalendarDay-DATE(YEAR(CalendarDay),1,0),\"일 \"))","v":"340일 "},{"$f":"IF(WEEKDAY(CalendarDay)=WeekStartValue,CONCATENATE(WEEKNUM(CalendarDay),\"주/ \",CalendarDay-DATE(YEAR(CalendarDay),1,0),\"일 \"),CONCATENATE(CalendarDay-DATE(YEAR(CalendarDay),1,0),\"일 \"))","v":"341일 "},{"$f":"IF(WEEKDAY(CalendarDay)=WeekStartValue,CONCATENATE(WEEKNUM(CalendarDay),\"주/ \",CalendarDay-DATE(YEAR(CalendarDay),1,0),\"일 \"),CONCATENATE(CalendarDay-DATE(YEAR(CalendarDay),1,0),\"일 \"))","v":"342일 "}]
[]
[null,null,{"$f":"DaysAndWeeks+DATE(역년,12,1)-WEEKDAY(DATE(역년,12,1),(WeekStart=\"월\")+1)+15","v":"2018-12-09"},"2018-12-10","2018-12-11","2018-12-12","2018-12-13","2018-12-14","2018-12-15"]
[null,null,{"$f":"IF(WEEKDAY(CalendarDay)=WeekStartValue,CONCATENATE(WEEKNUM(CalendarDay),\"주/ \",CalendarDay-DATE(YEAR(CalendarDay),1,0),\"일 \"),CONCATENATE(CalendarDay-DATE(YEAR(CalendarDay),1,0),\"일 \"))","v":"50주/ 343일 "},{"$f":"IF(WEEKDAY(CalendarDay)=WeekStartValue,CONCATENATE(WEEKNUM(CalendarDay),\"주/ \",CalendarDay-DATE(YEAR(CalendarDay),1,0),\"일 \"),CONCATENATE(CalendarDay-DATE(YEAR(CalendarDay),1,0),\"일 \"))","v":"344일 "},{"$f":"IF(WEEKDAY(CalendarDay)=WeekStartValue,CONCATENATE(WEEKNUM(CalendarDay),\"주/ \",CalendarDay-DATE(YEAR(CalendarDay),1,0),\"일 \"),CONCATENATE(CalendarDay-DATE(YEAR(CalendarDay),1,0),\"일 \"))","v":"345일 "},{"$f":"IF(WEEKDAY(CalendarDay)=WeekStartValue,CONCATENATE(WEEKNUM(CalendarDay),\"주/ \",CalendarDay-DATE(YEAR(CalendarDay),1,0),\"일 \"),CONCATENATE(CalendarDay-DATE(YEAR(CalendarDay),1,0),\"일 \"))","v":"346일 "},{"$f":"IF(WEEKDAY(CalendarDay)=WeekStartValue,CONCATENATE(WEEKNUM(CalendarDay),\"주/ \",CalendarDay-DATE(YEAR(CalendarDay),1,0),\"일 \"),CONCATENATE(CalendarDay-DATE(YEAR(CalendarDay),1,0),\"일 \"))","v":"347일 "},{"$f":"IF(WEEKDAY(CalendarDay)=WeekStartValue,CONCATENATE(WEEKNUM(CalendarDay),\"주/ \",CalendarDay-DATE(YEAR(CalendarDay),1,0),\"일 \"),CONCATENATE(CalendarDay-DATE(YEAR(CalendarDay),1,0),\"일 \"))","v":"348일 "},{"$f":"IF(WEEKDAY(CalendarDay)=WeekStartValue,CONCATENATE(WEEKNUM(CalendarDay),\"주/ \",CalendarDay-DATE(YEAR(CalendarDay),1,0),\"일 \"),CONCATENATE(CalendarDay-DATE(YEAR(CalendarDay),1,0),\"일 \"))","v":"349일 "}]
[]
[null,null,{"$f":"DaysAndWeeks+DATE(역년,12,1)-WEEKDAY(DATE(역년,12,1),(WeekStart=\"월\")+1)+22","v":"2018-12-16"},"2018-12-17","2018-12-18","2018-12-19","2018-12-20","2018-12-21","2018-12-22"]
[null,null,{"$f":"IF(WEEKDAY(CalendarDay)=WeekStartValue,CONCATENATE(WEEKNUM(CalendarDay),\"주/ \",CalendarDay-DATE(YEAR(CalendarDay),1,0),\"일 \"),CONCATENATE(CalendarDay-DATE(YEAR(CalendarDay),1,0),\"일 \"))","v":"51주/ 350일 "},{"$f":"IF(WEEKDAY(CalendarDay)=WeekStartValue,CONCATENATE(WEEKNUM(CalendarDay),\"주/ \",CalendarDay-DATE(YEAR(CalendarDay),1,0),\"일 \"),CONCATENATE(CalendarDay-DATE(YEAR(CalendarDay),1,0),\"일 \"))","v":"351일 "},{"$f":"IF(WEEKDAY(CalendarDay)=WeekStartValue,CONCATENATE(WEEKNUM(CalendarDay),\"주/ \",CalendarDay-DATE(YEAR(CalendarDay),1,0),\"일 \"),CONCATENATE(CalendarDay-DATE(YEAR(CalendarDay),1,0),\"일 \"))","v":"352일 "},{"$f":"IF(WEEKDAY(CalendarDay)=WeekStartValue,CONCATENATE(WEEKNUM(CalendarDay),\"주/ \",CalendarDay-DATE(YEAR(CalendarDay),1,0),\"일 \"),CONCATENATE(CalendarDay-DATE(YEAR(CalendarDay),1,0),\"일 \"))","v":"353일 "},{"$f":"IF(WEEKDAY(CalendarDay)=WeekStartValue,CONCATENATE(WEEKNUM(CalendarDay),\"주/ \",CalendarDay-DATE(YEAR(CalendarDay),1,0),\"일 \"),CONCATENATE(CalendarDay-DATE(YEAR(CalendarDay),1,0),\"일 \"))","v":"354일 "},{"$f":"IF(WEEKDAY(CalendarDay)=WeekStartValue,CONCATENATE(WEEKNUM(CalendarDay),\"주/ \",CalendarDay-DATE(YEAR(CalendarDay),1,0),\"일 \"),CONCATENATE(CalendarDay-DATE(YEAR(CalendarDay),1,0),\"일 \"))","v":"355일 "},{"$f":"IF(WEEKDAY(CalendarDay)=WeekStartValue,CONCATENATE(WEEKNUM(CalendarDay),\"주/ \",CalendarDay-DATE(YEAR(CalendarDay),1,0),\"일 \"),CONCATENATE(CalendarDay-DATE(YEAR(CalendarDay),1,0),\"일 \"))","v":"356일 "}]
[]
[null,null,{"$f":"DaysAndWeeks+DATE(역년,12,1)-WEEKDAY(DATE(역년,12,1),(WeekStart=\"월\")+1)+29","v":"2018-12-23"},"2018-12-24","2018-12-25","2018-12-26","2018-12-27","2018-12-28","2018-12-29"]
[null,null,{"$f":"IF(WEEKDAY(CalendarDay)=WeekStartValue,CONCATENATE(WEEKNUM(CalendarDay),\"주/ \",CalendarDay-DATE(YEAR(CalendarDay),1,0),\"일 \"),CONCATENATE(CalendarDay-DATE(YEAR(CalendarDay),1,0),\"일 \"))","v":"52주/ 357일 "},{"$f":"IF(WEEKDAY(CalendarDay)=WeekStartValue,CONCATENATE(WEEKNUM(CalendarDay),\"주/ \",CalendarDay-DATE(YEAR(CalendarDay),1,0),\"일 \"),CONCATENATE(CalendarDay-DATE(YEAR(CalendarDay),1,0),\"일 \"))","v":"358일 "},{"$f":"IF(WEEKDAY(CalendarDay)=WeekStartValue,CONCATENATE(WEEKNUM(CalendarDay),\"주/ \",CalendarDay-DATE(YEAR(CalendarDay),1,0),\"일 \"),CONCATENATE(CalendarDay-DATE(YEAR(CalendarDay),1,0),\"일 \"))","v":"359일 "},{"$f":"IF(WEEKDAY(CalendarDay)=WeekStartValue,CONCATENATE(WEEKNUM(CalendarDay),\"주/ \",CalendarDay-DATE(YEAR(CalendarDay),1,0),\"일 \"),CONCATENATE(CalendarDay-DATE(YEAR(CalendarDay),1,0),\"일 \"))","v":"360일 "},{"$f":"IF(WEEKDAY(CalendarDay)=WeekStartValue,CONCATENATE(WEEKNUM(CalendarDay),\"주/ \",CalendarDay-DATE(YEAR(CalendarDay),1,0),\"일 \"),CONCATENATE(CalendarDay-DATE(YEAR(CalendarDay),1,0),\"일 \"))","v":"361일 "},{"$f":"IF(WEEKDAY(CalendarDay)=WeekStartValue,CONCATENATE(WEEKNUM(CalendarDay),\"주/ \",CalendarDay-DATE(YEAR(CalendarDay),1,0),\"일 \"),CONCATENATE(CalendarDay-DATE(YEAR(CalendarDay),1,0),\"일 \"))","v":"362일 "},{"$f":"IF(WEEKDAY(CalendarDay)=WeekStartValue,CONCATENATE(WEEKNUM(CalendarDay),\"주/ \",CalendarDay-DATE(YEAR(CalendarDay),1,0),\"일 \"),CONCATENATE(CalendarDay-DATE(YEAR(CalendarDay),1,0),\"일 \"))","v":"363일 "}]
[{"$nulls":4},"메모"]
[]
[null,null,{"$f":"DaysAndWeeks+DATE(역년,12,1)-WEEKDAY(DATE(역년,12,1),(WeekStart=\"월\")+1)+36","v":"2018-12-30"},"2018-12-31"]
[null,null,{"$f":"IF(WEEKDAY(CalendarDay)=WeekStartValue,CONCATENATE(WEEKNUM(CalendarDay),\"주/ \",CalendarDay-DATE(YEAR(CalendarDay),1,0),\"일 \"),CONCATENATE(CalendarDay-DATE(YEAR(CalendarDay),1,0),\"일 \"))","v":"53주/ 364일 "},{"$f":"IF(WEEKDAY(CalendarDay)=WeekStartValue,CONCATENATE(WEEKNUM(CalendarDay),\"주/ \",CalendarDay-DATE(YEAR(CalendarDay),1,0),\"일 \"),CONCATENATE(CalendarDay-DATE(YEAR(CalendarDay),1,0),\"일 \"))","v":"365일 "}]